Workbook

Sheet Bell Pepper Budget (hidden)
A1: Item | B1: Unit | C1: Price/unit | D1: Quantity | E1: Total | I1: =15.5/50 -> 0.31 | K1: =300*0.46 -> 138 | Q1: Southeast Vegetebale handbook | R1: Zach
H2: =+H5+G5 -> 127.4 | I2: =+H5+G5 -> 127.4 | K2: =91.76/0.46 -> 199.4782609
A3: Total Income | F3: =500*0.13 -> 65 | H3: =+H2+H5 -> 217.27 | I3: =61*128 -> 7808 | K3: 7888 | L3: 0.8 | P3: Completed task
A4: Bell Peppers | B4: box (1 1/9 bu) | C4: =+#REF! ->  | D4: =+YieldVariety!B33 -> 941.5 | E4: =C4*D4 ->  | F4: Yield is from variety trials conducted in Dayton TN in 2017, prices are average annual shipping point prices from https://cat.ams.usda.gov/app/main#/dashboards/59a5dc4473e6430000000033?embed=true&l=true&r=true&h=false&t=false&volatile=true | G4: Potassium nitrate qt based on the southeast vegetable handbook (K provided by 278 lbs of this fertilizer) | H4: Calcium nitrate qt based on the southeast vegetable handbook (N provided by this fertilizer) | K4: =+K3/L3 -> 9860 | L4: 1
A5: Variable Costs | F5: N | G5: =278*0.135 -> 37.53 | H5: =+G9*0.155 -> 89.87 | I5: =+#REF!*0.155 ->  | K5: =6.8+9.3+13.3+20+24 -> 73.4
A6: Pepper plants | B6: plant | C6: =+'Plant Cost'!E3 -> 0.16 | D6: =+YieldVariety!E22 -> 17424 | E6: =C6*D6 -> 2787.84 | F6: 17424 plants per acre (5 ft between rows x 12" in row). | H6: =127.4-G5 -> 89.87 | L6: =50+24.22+11.02 -> 85.24 | M6: 400 | N6: 0.9
A7: Pre-plant: 10-10-10 Fertilizer | B7: 50 lb bag | C7: =+('Fertilizer Cost'!D2+'Fertilizer Cost'!D4)/2 -> 10.875 | D7: 10 | E7: =C7*D7 -> 108.75 | F7: * Check quantities with Annette. Quantities are calculated based on field trials | G7: 100 | H7: 15.5 | I7: Acre | J7: Sq ft | L7: =177-L6 -> 91.76 | M7: =+M6/N6 -> 444.4444444 | N7: 1
A8: Fertigation: Calcium Nitrate | B8: 50 lb bag | C8: =+AVERAGE('Fertilizer Cost'!D6:D8) -> 16.15 | D8: =135/50 -> 2.7 | E8: =C8*D8 -> 43.605 | F8: * Check quantities with Annette. Quantities are calculated based on recommended rates from the Southeastern Vegetable Crop Handbook | G8: =+H8*G7 -> 8987 | H8: 89.87 | I8: 1 | J8: 43560 | L8: =4000*0.8 -> 3200
A9: Fertigation: Potassium Nitrate | B9: 50 lb bag | C9: =+('Fertilizer Cost'!D10+'Fertilizer Cost'!D12)/2 -> 31.53 | D9: =225/50 -> 4.5 | E9: 141.885 | F9: * Check quantities with Annette. Quantities are calculated based on recommended rates from the Southeastern Vegetable Crop Handbook | G9: =+G8/H7 -> 579.8064516 | I9: 0.771349862 | J9: 33600 | L9: =4*4000 -> 16000
A10: Plastic mulch | B10: roll (4x4000) | C10: =+('Plastic,stakes, drip'!D1+'Plastic,stakes, drip'!D3)/2 -> 111.5 | D10: 2.18 | E10: =C10*D10 -> 243.07 | F10: 5 ft between rows results into 2.18 4 x 4000 ft rolls of plastic to cover a whole acre. Mulch price is based on the partila budgeting analysis publication | L10: =4*L8 -> 12800 | M10: =+L9+L10 -> 28800 | N10: =4*3200 -> 12800
A11: T-tape (drip tape, 750') | B11: roll (750') | C11: =+(139+144)/2 -> 141.5 | D11: =8712/750 -> 11.616 | E11: =C11*D11 -> 1643.664 | F11: We used the same model suggested for the field trials (T-Tape, Model #508-08-340), 8712 ft of drip tape | I11: Pepper plants
A12: Water costs | B12: ac-in | F12: Missippi State University Budget
A13: Stakes | B13: per 100 stakes | C13: =+'Plastic,stakes, drip'!D25 -> 57.08 | D13: =+(D6/3)/100 -> 58.08 | E13: =C13*D13 -> 3315.2064 | F13: Assuming a stake is put every three plants, using wood stakes of 1 square inch by 4 feet | G13: =177.4-50 -> 127.4 | H13: =227.4-100 -> 127.4
A14: Twine | B14: per 6300 ft tube | C14: =+'Plastic,stakes, drip'!C37 -> 7.1575 | D14: =(8712*2*3)/6300 -> 8.297142857 | E14: =+D14*C14 -> 59.3868 | G14: 100 | H14: =+G14*0.155 -> 15.5 | I14: 0.771349862 | J14: 7888 | O14: 3381.21
A15: Fumigant | G15: 100 | H15: 13.75 | I15: 1 | J15: =I15*J14/I14 -> 10226.22857 | O15: 3354.96
A16: Telone C17 | B16: gal | C16: 20.3 | D16: =+(32.4+42)/2 -> 37.2 | E16: =+D16*C16 -> 755.16 | I16: =+J16/#REF! ->  | J16: 12.5
A17: Fungicides | G17: =146.8*0.135 -> 19.818
A18: Kocide | B18: lb | C18: =+'Fungicide costs'!Y8/10 -> 9.1985 | D18: =1.25*10 -> 12.5 | E18: =+D18*C18 -> 114.98125
A19: Manzate | B19: lb | C19: =+'Fungicide costs'!Y9 -> 4.204166667 | D19: =7*2 -> 14 | E19: =+D19*C19 -> 58.85833333 | F19: CHECK ALL APPLICATIONS MAKE SURE THEY ARE CORRECT
A20: Quadris | B20: fl oz | C20: =+'Fungicide costs'!Z10 -> 1.450770833 | D20: 10 | E20: =+C20*D20 -> 14.50770833 | F20: we have prices for liquid we may need prices for solid Quadris
A21: Bravo | B21: pt | C21: =+'Fungicide costs'!Z11 -> 7.546473033 | D21: 1.5 | E21: =+D21*C21 -> 11.31970955 | F21: No information, we need to contact other input supplier. We have prices for Bravo Weatherstick deom Deerfield supplies
A22: Cabrio | B22: oz | C22: =+'Fungicide costs'!Z12 -> 2.3646875 | D22: 10 | E22: =+C22*D22 -> 23.646875 | F22: Price from Deerfield supplies only
A23: Priaxor | B23: fl oz | C23: =+'Fungicide costs'!Z13 -> 4.123359375 | D23: 6 | E23: =+C23*D23 -> 24.74015625
A24: Aprovia Top | B24: fl oz | C24: =+'Fungicide costs'!Z14 -> 2.49609375 | D24: 24 | E24: =+D24*C24 -> 59.90625 | F24: Prices from Deerfield supplies in gal, I'm assuming fulid oz, ask Zack if this is correct
A25: Orondis Gold 200 | B25: fl oz | C25: =+'Fungicide costs'!Z15 -> 2.306640625 | D25: 9.6 | E25: =+D25*C25 -> 22.14375 | F25: Prices from Deerfield supplies only
A26: Ridomil Gold SL | B26: pt | C26: =+'Fungicide costs'!Y16 -> 101.85 | D26: 1 | E26: =+D26*C26 -> 101.85 | F26: Prices from Deerfield supplies only
A27: Ranman | B27: fl oz | C27: =+'Fungicide costs'!Z17 -> 7.79765625 | D27: =2.75*2 -> 5.5 | E27: =+C27*D27 -> 42.88710937 | F27: Prices from Deerfield supplies only
A28: Revus | B28: fl oz | C28: =+'Fungicide costs'!Z18 -> 2.904882812 | D28: =8*2 -> 16 | E28: =+C28*D28 -> 46.478125 | F28: Prices from Deerfield supplies only
A29: Presidio | B29: fl oz | C29: =+'Fungicide costs'!Z19 -> 9.84375 | D29: =4*2 -> 8 | E29: =+C29*D29 -> 78.75 | F29: Prices from Deerfield supplies only
A30: Zampro | B30: fl oz | C30: =+'Fungicide costs'!Z20 -> 2.690714286 | D30: 14 | E30: =+C30*D30 -> 37.67 | F30: make sure the price is for liquid oz
A31: Orondis Ultra | B31: fl oz | C31: =+'Fungicide costs'!Z21 -> 6.2203125 | D31: =8*2 -> 16 | E31: =+C31*D31 -> 99.525 | F31: Prices from Deerfield supplies only
A32: Insecticides
A33: Mustang Maxx | B33: fl oz | C33: =+'insect, herbicides'!G22/128 -> 1.201953125 | D33: =+'insect, herbicides'!B26*4.5 -> 14.04 | E33: =+D33*C33 -> 16.87542188
A34: Coragen | B34: fl oz | C34: =+'insect, herbicides'!A32/23 -> 11.17173913 | D34: =+'insect, herbicides'!C29 -> 2.75 | E34: =+D34*C34 -> 30.72228261
A35: Movento | B35: fl oz | C35: =+'insect, herbicides'!B40 -> 8.066015625 | D35: 4.5 | E35: =+D35*C35 -> 36.29707031
A36: Orthene | B36: lb | C36: =+'insect, herbicides'!I46/7.73 -> 13.07956016 | D36: =+'insect, herbicides'!C43 -> 0.375 | E36: =+D36*C36 -> 4.904835058
A37: Herbicides | G37: =+(14.2*2)+(19.9*2)+(28.5*2)+(42.5*2)+(51.2*2) -> 312.6 | I37: acre | J37: units
A38: Poast | B38: pt | C38: =+'insect, herbicides'!B8/16.6535 -> 15.13045306 | D38: =+(0.5+2.5)/2 -> 1.5 | E38: =+D38*C38 -> 22.69567959
A39: Sandea | B39: oz | C39: =+'insect, herbicides'!A20 -> 38.995 | D39: 0.75 | E39: =+D39*C39 -> 29.24625
A40: Hired Labor
A41: Operator labor | B41: hour | C41: 13.26 | D41: =+'Equipment costs'!H52 -> 6.6 | E41: =+D41*C41 -> 87.516 | F41: Check all hand labor below
A42: Transplant labor | B42: hours | C42: 11.63 | D42: 28.84 | E42: =+C42*D42 -> 335.4092 | F42: Based on Kentucky budget
A43: Harvest labor | B43: box | C43: 1.02 | E43: =+C43*$D$4 -> 960.33 | F43: Based on Kentucky budget | G43: =+H43/#REF! ->  | H43: 14520 | I43: plant staking labor (5 people) | L43: =+#REF!/#REF! ->  | M43: 1
A44: Grade/Packing labor | B44: box | C44: 1.63 | E44: =+C44*$D$4 -> 1534.645 | F44: Based on Kentucky budget | I44: 0.771349862 | J44: 4.75
A45: Plastic removal | B45: hour | C45: 11.63 | D45: 12 | E45: 139.56 | F45: I used labor hour estimates from producer survey we are conducting and the 2019 AEWR from the department of labor https://www.foreignlaborcert.doleta.gov/adverse.cfm | G45: 1 | H45: 6300 | I45: 1 | J45: =I45*J44/I44 -> 6.158035716
A46: Plastic disposal | B46: hour | C46: 11.63 | D46: 2 | E46: =+D46*C46 -> 23.26 | F46: I used labor hour estimates from producer survey we are conducting and the 2019 AEWR from the department of labor https://www.foreignlaborcert.doleta.gov/adverse.cfm
A47: Other Marketing and Harvesting Costs
A48: Cardboard boxes | B48: box | C48: =+'carbord wax boxes'!B6 -> 1.922857143 | D48: =+D4 -> 941.5 | E48: =C48*D48 -> 1810.37
A49: Bins/Stacking
A50: Diesel Fuel | I50: 0.771349862 | J50: 6.5
A51: Tractors | B51: gal | C51: =+'Equipment costs'!M2 -> 2.454 | D51: =+'Equipment costs'!Q52 -> 22.29922 | E51: =+C51*D51 -> 54.72228588
A52: Repairs and Maintenance
A53: PU | B53: acre | C53: =+'Equipment costs'!K52 -> 7.87 | D53: 1 | E53: =+D53*C53 -> 7.87
A54: Implements | B54: acre | C54: =+'Equipment costs'!F3+'Equipment costs'!F4+'Equipment costs'!F5+'Equipment costs'!F8+'Equipment costs'!F11+'Equipment costs'!F19+'Equipment costs'!F22+'Equipment costs'!F41+'Equipment costs'!F42+'Equipment costs'!F44+'Equipment costs'!F45+'Equipment costs'!F46+'Equipment costs'!F48+'Equipment costs'!F49+'Equipment costs'!F51 -> 9.17 | D54: 1 | E54: =+D54*C54 -> 9.17
A55: Plastic Mulch Disposal
A56: Plastic mulch disposal | B56: fee per ton | C56: 35 | D56: 0.21 | E56: =+D56*C56 -> 7.35 | F56: Based on partial budgeting publication
A57: Operating interest | B57: Half of specified variable expenses | D57: 0.065 | E57: =+(E58*0.5*0.065) -> 501.5577285 | F57: NEEDS TO BE ADDED
A58: Total Variable Cost | E58: =SUM(E6:E56)+485.77 -> 15432.54549 | I58: acre | J58: units
I59: Pottassium Nitrate
A60: Fixed Costs
A61: Irrigation | B61: acre | C61: 315.5 | D61: 1 | E61: =+D61*C61 -> 315.5 | F61: Based on Mississippi State University crop budgets
A62: Power Equipment | B62: acre | C62: =+'Equipment costs'!E3+'Equipment costs'!E4+'Equipment costs'!E5+'Equipment costs'!E8+'Equipment costs'!E11+'Equipment costs'!E19+'Equipment costs'!E22+'Equipment costs'!E41+'Equipment costs'!E42+'Equipment costs'!E44+'Equipment costs'!E45+'Equipment costs'!E46+'Equipment costs'!E49+'Equipment costs'!E48+'Equipment costs'!E51 -> 37.79 | D62: 1 | E62: =+C62*D62 -> 37.79
A63: Implements | B63: acre | C63: =+'Equipment costs'!G3+'Equipment costs'!G4+'Equipment costs'!G5+'Equipment costs'!G6+'Equipment costs'!G8+'Equipment costs'!G11+'Equipment costs'!G19+'Equipment costs'!G22+'Equipment costs'!G41+'Equipment costs'!G42+'Equipment costs'!G44+'Equipment costs'!G45+'Equipment costs'!G46+'Equipment costs'!G48+'Equipment costs'!G49+'Equipment costs'!G51 -> 20.14 | D63: 1 | E63: =+D63*C63 -> 20.14
A64: Land Rent | B64: acre | C64: 95 | D64: 1 | E64: =+D64*C64 -> 95
A65: Total Fix costs | E65: =SUM(E61:E64) -> 468.43
A67: Total costs | E67: =+E65+E58 -> 15900.97549
E68: =+E4-E67 -> 

Sheet carbord wax boxes (hidden)
A2: for 560 | B2: 1140 | C2: https://www.glacierv.com/SPD/item-no-883---1-1-9-bushel-vegetable-carton--cascaded-wax--560-pack--2310000-1207778056.jsp
A3: for 540 | B3: 977.4 | C3: https://rockfordpack.com/checkout/cart/
B4: =+B2/560 -> 2.035714286
B5: =+B3/540 -> 1.81
B6: =+(B4+B5)/2 -> 1.922857143

Sheet Plant Cost (hidden)
A1: Pepper plants
C2: Plants | D2: $ | E2: $/plant
A3: Evans Plants | B3: GA | C3: 1000 | D3: 160 | E3: =+D3/C3 -> 0.16 | G3: 1000 | H3: 160
C4: 500 | D4: 85 | E4: =+D4/C4 -> 0.17 | G4: 100 | H4: =+G4*H3/G3 -> 16
C5: additional 100 plants | D5: 16 | I5: 16 | J5: 100
C6: 300 | D6: 60 | E6: =+D6/C6 -> 0.2 | I6: =+I5/J5 -> 0.16 | J6: 1
A7: Sells Plants Company | B7: GA | C7: 32 | D7: 8.8 | E7: =+D7/C7 -> 0.275
D8: average | E8: =+(E3+E7)/2 -> 0.2175

Sheet YieldVariety (hidden)
A1: Variety | B1: Total boxes/ A | D1: 2017 Bell Pepper Variety Trial Dayton, TN
A2: Aristotle | B2: 1124 | D2: 6 ft spacing
A3: Mercer | B3: 1053 | D3: planst per acre | E3: 14520
A4: Turnpike | B4: 990
A5: PS 09941819 | B5: 902
A6: Green Flash | B6: 824
A7: Mariner | B7: 812
A8: Playmaker | B8: 767
A9: Heritage | B9: 744
A10: Samurai | B10: 647
A11: Vanguard | B11: 544
A12: Galleon | B12: 506
A13: Ninja | B13: 502
A14: Average | B14: =+AVERAGE(B2:B13) -> 784.5833333
A16: Box | B16: 1 1/9 bu
A20: Variety | B20: Total boxes/ A | D20: Adjustments of yield based on 5ft spacing
A21: Aristotle | B21: =+($E$22*B2)/$E$3 -> 1348.8 | D21: 5 ft spacing
A22: Mercer | B22: =+($E$22*B3)/$E$3 -> 1263.6 | D22: plants per acre | E22: 17424
A23: Turnpike | B23: 1188
A24: PS 09941819 | B24: 1082.4
A25: Green Flash | B25: 988.8
A26: Mariner | B26: 974.4
A27: Playmaker | B27: 920.4
A28: Heritage | B28: 892.8
A29: Samurai | B29: 776.4
A30: Vanguard | B30: 652.8
A31: Galleon | B31: 607.2
A32: Ninja | B32: 602.4
A33: Average | B33: =+AVERAGE(B21:B32) -> 941.5
A35: Box | B35: 1 1/9 bu

Sheet Fertilizer Cost (hidden)
B1: Supplier | C1: Product | D1: Price | E1: Units | F1: Notes
A2: Fertlizier | B2: Grainger | C2: 10-10-10 | D2: 10 | E2: 50 lb bag | G2: *left voicemail for Gm no response. Called back--off work will return Thursday morning. *left another message *called on Thursday GM not in
B3: Blount | C3: 10-10-10 | D3: 10.49 | E3: 40 lb bag | F3: bulk: @ 75 bags 9.79 per bag
B4: Deerfield | C4: 10-10-10 | D4: 11.75 | E4: 50 lb bag | F4: 20-20-20 25 lb bag 35.60 (8% discount) | G4: *Deerfield sent catalog --Early buyer program discount
G5: *deerfield Early Buyers Program --
B6: Grainger | C6: Calcium Nitrate | D6: 15.35 | E6: 50 lb bag | G6: Chemicals and Fertilizer Ordred and Paid before March 22 2019--8% discount with cash/check/money order 5% discount with credit/debit card--
B7: Blount | C7: Calcium Nitrate | D7: 15.85 | E7: 50 lb bag | F7: no bulk discount | G7: Supplies--8% discount on prepaid orders from Dec. 1 2018-Jan 4 2019 5% discount from Jan. 7 2019-Jan 31 2019 (5% and 2% respectively for credit card payments)
B8: Deerfield | C8: Calcium Nitrate | D8: 17.25 | E8: 50 lb bag
B10: Grainger | C10: Potassium Nitrate | D10: 32.5 | E10: 50 lb bag
B11: Blount | C11: Potassium Nitrate | D11: N/A | F11: n/a
B12: Deerfield | C12: Potassium Nitrate | D12: 30.56 | E12: 50 lb bag
E14: Nitrogen | F14: Phosphate | G14: Potassium
A15: Applications | D15: lbs/acre | E15: N | F15: P2O5 | G15: K2O
B16: 10-10-10 | C16: 10-10-10 | D16: 500 | E16: 50 | F16: 50 | G16: 50
B17: Calcium Nitrate | C17: 13.5_0_46 | D17: =50/0.46 -> 108.6956522 | E17: =+D17*0.135 -> 14.67391304 | G17: =+D17*0.46 -> 50
B18: Potassium Nitrate | C18: 15.5_0_0_19 | D18: =+F21/0.155 -> 227.9102384 | E18: =+D18*0.155 -> 35.32608696
B19: Total | E19: 100 | F19: 100 | G19: 100
F21: =+E19-(E16+E17) -> 35.32608696
E24: Nitrogen | F24: Phosphate | G24: Potassium
D25: lbs/acre | E25: N | F25: P2O5 | G25: K2O
B26: 10-10-10 | C26: 10-10-10 | D26: 500 | E26: 50 | F26: 50 | G26: 50
B27: Calcium Nitrate | C27: 13_0-44 | D27: 225 | E27: =+D27*0.13 -> 29.25 | G27: =+D27*0.44 -> 99
B28: Potassium Nitrate | C28: 15_0_0_19 | D28: 135 | E28: =+D28*0.15 -> 20.25
E29: =SUM(E26:E28) -> 99.5 | F29: =SUM(F26:F28) -> 50 | G29: =SUM(G26:G28) -> 149

Sheet Plastic,stakes, drip (hidden)
A1: Plastic Mulch | B1: Grainger | C1: Plastic Mulch | D1: 115 | E1: 4x4000 1 mil thickness
B2: Blount | C2: Plastic Mulch | D2: N/A | E2: 4x4000 1 mil thickness
B3: Deerfield | C3: Plastic Mulch (black embossed) | D3: 108 | E3: 4x4000 1 mil thickness | F3: 106.00 (16 rolls and up)
B5: Grainger | C5: Plastic Mulch | D5: 143 | E5: 4x4000 1.25 mil thickness
B6: Blount | C6: Plastic Mulch | D6: N/A | E6: 4x4000 1.25 mil thickness
B7: Deerfield | C7: Plastic Mulch (black embossed) | D7: 135 | E7: 4x4000 1.25 mil thickness | F7: 133.00 (16 rolls and up) | H7: 16 items + | I7: 110
A9: Drip Tape | B9: Grainger | C9: T-tape model #508-08-340 | E9: 750 ft | F9: 7500 ft low flow 139.00
B10: Blount | C10: T-tape model #508-08-340 | E10: 750 ft | F10: 508-12-340 ($144 per roll, n/a length)
B11: Deerfield | C11: T-tape model #508-08-340 | E11: 750 ft | F11: *other models avaliable
A16: Stakes
A17: http://www.irrigation-mart.com/default.aspx?page=item+detail&itemcode=STAKES-48L&catlist=102&parent=353
A18: Per 25 bundles (48x1x1) | B18: 0 | C18: 2 | D18: 15.83
B19: 2 | C19: 60 | D19: 13.56
B20: 56 | C20: and above | D20: 11.87 | E20: per 100 | F20: =+D19*4 -> 54.24
A22: https://www.rainfloirrigation.com/wp-content/uploads/2017/02/Page-33-1.pdf
A23: Per 100 bundles (48x1x1) | B23: 52
B25: average price | C25: =+(F20+B23)/2 -> 53.12 | D25: =+(B23+F20+65)/3 -> 57.08
A27: Twine
A28: http://www.irrigation-mart.com/default.aspx?page=item+detail&itemcode=TWINE-6300ST&catlist=102&parent=353
A29: 6300 ST | B29: 0 | C29: 18 | D29: 6.89
B30: 18 | C30: 324 | D30: 6.32
B31: 324 | C31: 971.9 | D31: 5.41
B32: 972 | C32: ABOVE | D32: 4.74
A34: https://www.rainfloirrigation.com/wp-content/uploads/2017/02/Page-33-1.pdf
A35: T 6300 ST | B35: 1 | C35: 7
B37: average price | C37: =+(D29+C35+D44+D45)/4 -> 7.1575
A39: Wood Stakes | B39: Grainger | C39: Wood Stakes | E39: 1 sq. ft. by 4 ft | F39: unsure 5-6 (25 in a bundle-- pallet at a time 756)
B40: Blount | C40: Wood Stakes | D40: 1.99 | E40: 1 sq. ft. by 5 ft | F40: hard plastic stake: 1 sq. ft by 4 ft are 1.49
B41: Deerfield | C41: Wood Stakes | D41: 0.65 each | E41: 1 sq. ft. by 4 ft | F41: 0.60 (skid price each)
A43: Twine | B43: Grainger | C43: Twine | E43: 6300 ft. tube | F43: grow twine 5.95 per roll (2100 ft)
B44: Blount | C44: Twine | D44: 7.99 | E44: 6300 ft. tube | F44: tomato twine
B45: Deerfield | C45: Twine | D45: 6.75 | E45: 6000 ft. ball / 3Lb | F45: white nylon twine

Sheet insect, herbicides (hidden)
A1: https://vegetables.ces.ncsu.edu/wp-content/uploads/2018/03/2018-NCSU-Bell-Pepper-Fungicide-Spray-Guide.pdf?fwd=no
A3: Poast
A4: https://www.keystonepestsolutions.com/index.php?main_page=product_info&products_id=183&utm_source=google&utm_medium=cpc&adpos=1o1&scid=scplp183&sc_intid=183&gclid=EAIaIQobChMIrtzqm6ar4gIVBFYMCh2cVgKeEAQYASABEgIlZfD_BwE
A5: 2.5 gal | B5: 249.95
A6: https://chemicalwarehouse.com/products/poast-herbicide?gclid=EAIaIQobChMIrtzqm6ar4gIVBFYMCh2cVgKeEAQYBCABEgJAcPD_BwE
A7: 2.5 gal | B7: 254
A8: average | B8: =+(B5+B7)/2 -> 251.975
A9: rate
A10: 0.5-2.5 pt/ACRE
A11: https://www.uky.edu/Ag/Horticulture/masabni/PPT/herbicidespepper.pdf
A13: Sandea
A14: rate
A15: https://www.uky.edu/Ag/Horticulture/masabni/PPT/herbicidespepper.pdf
A16: 0.5 -1 oz
A17: price
A18: https://www.keystonepestsolutions.com/sandea-herbicide-post-emergence-10-ounces-285
A19: 389.95 | B19: 10 oz
A20: =+A19/10 -> 38.995 | B20: 1 oz
A22: Grainger | B22: Mustang Maxx Gal | C22: 199 | D22: 1 gal | F22: average | G22: =+(C22+C24)/2 -> 153.85
A23: Blount | B23: Mustang Maxx Gal | C23: n/A
A24: Deerfield | B24: Mustang Maxx Gal | C24: 108.7 | D24: 1 gal
A25: zeta-cypermethrin (Mustang Maxx) at 2.24 – 4.0 fl oz/acre or 3.2 – 4.0 fl oz/acre dependent on the types of caterpillars targeted.
A26: Application | B26: =+(2.24+4)/2 -> 3.12 | C26: oz
A28: Coragen
A29: application | B29: 2-3.5 fl oz/acre | C29: =+(2+3.5)/2 -> 2.75
A30: price
A31: https://www.keystonepestsolutions.com/coragen-insecticide-1-quart-543
A32: 256.95 | B32: 32 oz
A34: Movento
A35: https://www.keystonepestsolutions.com/movento-insecticide-1-gallon-905
A36: Application: 4.5 fl oz/ acre
A37: price | B37: 1018.95 | C37: gal | I37: Average | J37: =+(B37+B39)/2 -> 1032.45
A38: https://www.pestrong.com/932-movento-sc-insecticide-spirotetramat-qt-gallon.html
A39: price | B39: 1045.95 | C39: gal
A40: Average | B40: =+J37/128 -> 8.066015625 | C40: oz
A42: Orthene 97 PE
A43: 1/4-1/2 lb/acre | C43: =+(0.25+0.5)/2 -> 0.375
A44: 4-8oz per acre
A45: https://www.pestrong.com/567-orthene-97-insecticide-0773-773-lb.html
A46: 94.28 | B46: 7.73 lb | H46: average | I46: =+(A46+A48)/2 -> 101.105
A47: https://www.domyown.com/orthene-97-spray-insecticide-p-3962.html
A48: 107.93 | B48: 7.73 lb

Sheet Fungicide costs (hidden)
B1: Knoxville TN (865-522-3148) | E1: Maryville farm coop ((865) 982-2761) | H1: Grainger county | K1: Deerfield supplies | N1: Pestrong (https://www.pestrong.com/752-agri-mycin-17-fungicide-harbour-2-lb.html) | Q1: Ag cetral coop ((423) 507-9303) | T1: Keystone pest solution | W1: https://www.pubs.ext.vt.edu/content/dam/pubs_ext_vt_edu/446/446-047/PDF_Chemical07.pdf
B2: Availability | C2: Units | D2: Price | E2: Availability | F2: Units | G2: Price | H2: Availability | I2: Units | J2: Price | K2: Availability | L2: Units | M2: Price | N2: Availability | O2: Units | P2: Price | Q2: Availability | R2: Units | S2: Price | T2: Availability | U2: Units | V2: Price | W2: 2007 | Y2: average
A3: Pic-Clor 60 | K3: no | W3: 1 gal | X3: 20.3
A4: Telone C17 | K4: no
A5: Telone C35 | K5: no
A6: Agri-Mycin 17, Firewall | E6: Yes | F6: 2 lbs | G6: 35 | K6: no | N6: Yes | O6: 2 lbs | P6: 39.95
A7: Blocker | E7: No | K7: no
A8: Kocide | B8: no | E8: Yes | F8: 10 lbs | G8: 101 | H8: yes | I8: 10 lbs | J8: 95.49 | K8: yes | L8: 10 lbs | M8: 76.5 | T8: yes | U8: 10 lbs | V8: 94.95 | Y8: =+AVERAGE(V8,M8,J8,G8) -> 91.985
A9: Manzate | B9: no | E9: Yes | F9: 2.5 gal | G9: 115 | H9: yes | I9: 2.5 gal | J9: 85 | K9: yes | L9: 30 lb | M9: 112.3 | N9: yes | O9: 6 lbs | P9: 54.5 | T9: yes | U9: 30 lbs | V9: 139.95 | Y9: =+((V9/30)+(M9/30))/2 -> 4.204166667
A10: Quadris | B10: no | E10: Yes | F10: gal | G10: 216 | H10: yes | I10: 2.5 gal | J10: 417.99 | K10: yes | L10: 1 gal | M10: 173.9 | T10: yes | U10: 1 gal | V10: 199.95 | Y10: =+((G10)+(J10/2.5)+(M10))/3 -> 185.6986667 | Z10: =+Y10/128 -> 1.450770833 | AA10: fl oz
A11: Bravo | B11: no | E11: Yes | F11: 2.5 gal | G11: 122.85 | K11: yes | L11: 2.5 gal | M11: 128.5 | T11: yes | U11: 2.5 gal | V11: 174.95 | Y11: =+((G11/2.5)+(M11/2.5))/2 -> 50.27 | Z11: =+Y11/6.66139 -> 7.546473033 | AA11: pt
A12: Cabrio | B12: no | E12: Yes | F12: 5 lbs | G12: 193 | K12: yes | L12: 5 lb | M12: 185.35 | T12: yes | U12: 5 lbs | V12: 209.95 | Y12: =+((G12/5)+(M12/5))/2 -> 37.835 | Z12: =+Y12/16 -> 2.3646875 | AA12: oz
A13: Priaxor | E13: Yes | F13: 2.5 gal | G13: 1389 | K13: no | T13: yes | U13: 2.5 gal | V13: 1249.95 | Y13: =+((V13/2.5)+(G13/2.5))/2 -> 527.79 | Z13: =+Y13/128 -> 4.123359375 | AA13: fl oz
A14: Aprovia Top | E14: No | K14: yes | L14: 1 gal | M14: 319.5 | Y14: =+M14 -> 319.5 | Z14: =+Y14/128 -> 2.49609375 | AA14: fl oz
A15: Orondis Gold 200 | E15: Yes | F15: 2.5 gal | G15: 677.5 | K15: yes | L15: 128 oz | M15: 696.95 | Y15: =+(M14+(G15/2.5))/2 -> 295.25 | Z15: =+Y15/128 -> 2.306640625 | AA15: fl oz
A16: Ridomil Gold SL | B16: no | E16: Yes | F16: 2.5 gal | G16: =276.99 -> 276.99 | K16: yes | L16: 1 pt | M16: 93.75 | T16: yes | U16: 1 pt | V16: 109.95 | Y16: =+(V16+M16)/2 -> 101.85
A17: Ranman | E17: No | K17: yes | L17: 1 qt | M17: 239.1 | T17: yes | U17: 1 qt | V17: 259.95 | Y17: =+(V17+M17)/2 -> 249.525 | Z17: =+Y17/32 -> 7.79765625 | AA17: fl oz
A18: Revus | E18: Yes | F18: 2.5 gal | G18: 855 | K18: yes | L18: 1 gal | M18: 401.65 | T18: yes | U18: 1 gal | V18: 428.95 | Y18: =+((G18/2.5)+M18)/2 -> 371.825 | Z18: =+Y18/128 -> 2.904882812 | AA18: fl oz
A19: Presidio | B19: no | E19: No | K19: yes | L19: 1 qt | M19: 300.05 | T19: yes | U19: 1 qt | V19: 329.95 | Y19: =+(V19+M19)/2 -> 315 | Z19: =+Y19/32 -> 9.84375 | AA19: fl oz
A20: Zampro | B20: no | E20: No | H20: yes | I20: 140 oz | J20: 376.7 | K20: yes | L20: 140 oz | M20: 370.45 | T20: yes | U20: 140 oz | V20: 382.95 | Y20: =+(V20+M20+J20)/3 -> 376.7 | Z20: =+Y20/140 -> 2.690714286
A21: Orondis Ultra | E21: No | K21: yes | L21: 1 gal | M21: 796.2 | T21: no | Y21: =+M21 -> 796.2 | Z21: =+Y21/128 -> 6.2203125 | AA21: fl oz
A22: Ranman | B22: no | E22: No | K22: yes | L22: 1qt | M22: 239.1 | T22: yes | U22: 1 qt | V22: 259.95
A23: Revus | E23: Yes | F23: 2.5 gal | G23: 855 | H23: yes | I23: 2.5 gal | J23: 815.99 | K23: yes | L23: 1 gal | M23: 401.65 | T23: yes | U23: 1 gal | V23: 428.95
A24: Presidio | E24: No | H24: yes | I24: qt | J24: 285.75 | K24: yes | L24: 1 qt | M24: 300.05 | T24: yes | U24: 1 qt | V24: 329.95
A25: Oronis Ultra | E25: No | K25: yes | L25: 1 gal | M25: 796.2

Sheet Intro
B5: Sample Budget for Large-Scale Commercial Pepper Operations
B6: Version 1.0
B8: Margarita Velandia
B9: Professor
B10: Office: (865) 974-7409 Email: mvelandia@utk.edu
B12: Becky Bowling
B13: Extension Specialist
B14: Office: (865) 974-7016 Email: bowling10@utk.edu
B43: Programs in agriculture and natural resources, 4-H youth development, family and consumer sciences, and resource development.
B44: University of Tennessee Institute of Agriculture, U.S. Department of Agriculture and country governments cooperating.
B45: UT Extension provide equal opportunities in programs and employment.

Sheet Budget no PB
B1: 2022 SAMPLE BUDGET FOR LARGE SCALE BELL PEPPER
C3: Pepper Variety: | D3: Green (Aristotle)
C4: Production practice: | D4: Open field production + irrigated
C5: Operation Size: | D5: 1 acre
C6: Space between plants: | D6: 12 in
C7: Space between rows: | D7: 5 ft
C8: Yield (box (1 1/9 bu) per acre): | D8: =YieldVariety!$B$21 -> 1348.8
C9: Harvesting rate (boxes/hour) | D9: 15
C10: Grading and Packing rate (boxes/hour) | D10: 10
C11: Breakeven-price ($ per 1 1/9 bu box) | D11: =+G73/F17 -> 14.77853963
C12: Breakeven-yield (1 1/9 bu boxes per acre) | D12: =+G73/E17 -> 1037.291982
C15: ITEM | D15: UNIT | E15: $/UNIT | F15: QUANTITY | G15: TOTAL
C16: GROSS RETURNS
C17: Bell Peppers | D17: box (1 1/9 bu) | E17: =+'Price graph'!$E$30 -> 19.21666667 | F17: =+D8 -> 1348.8 | G17: =+F17*E17 -> 25919.44
C19: VARIABLE COSTS
C20: 1. Pepper plants | D20: plant | E20: =+AVERAGE('Input prices'!$E$3:$E$5) -> 0.1720666667 | F20: 17424 | G20: =+F20*E20 -> 2998.0896
C21: 2. Pre-plant: 10-10-10 Fertilizer | D21: 50 lb bag | E21: =+AVERAGE('Input prices'!$C$10:$C$14) -> 19.3585 | F21: 10 | G21: =+F21*E21 -> 193.585
C22: 2. Fertigation: Calcium Nitrate | D22: 50 lb bag | E22: =+AVERAGE('Input prices'!C$18:C$23) -> 24.95166667 | F22: 2.7 | G22: 67.3695
C23: 2. Fertigation: Potassium Nitrate | D23: 50 lb bag | E23: =+AVERAGE('Input prices'!C$27,'Input prices'!C$29) -> 35 | F23: 4.5 | G23: 157.5
C24: 3. Plastic mulch | D24: roll (4x4,000) | E24: =+AVERAGE('Input prices'!C$33:C$36) -> 166.99 | F24: 2.18 | G24: 364.0382
C25: 4. T-tape (drip tape, 750') | D25: roll (750') | E25: =+AVERAGE('Input prices'!C$40:C$41) -> 187.5 | F25: 11.616 | G25: 2178
C26: 5. Water costs | D26: ac-in | G26: 0
C27: 6. Stakes | D27: per 1400 stakes | E27: =+AVERAGE('Input prices'!C$46,'Input prices'!C$48,'Input prices'!C$49) -> 929.8933333 | F27: 4.148571 | G27: =+F27*E27 -> 3857.728516
C28: 7. Twine | D28: per 6,300 ft tube | E28: =+AVERAGE('Input prices'!D$54:D$56) -> 8.026666667 | F28: 8.297142857 | G28: =+F28*E28 -> 66.5984
C29: 8. Fumigant
C30: Telone C17 | D30: gal | E30: 20.3 | F30: 37.2 | G30: =+E30*F30 -> 755.16
C31: 8. Fungicides
C32: Kocide | D32: lb | E32: =+AVERAGE('Input prices'!D$62, 'Input prices'!D$63, 'Input prices'!D$65) -> 10.675 | F32: 15 | G32: =+F32*E32 -> 160.125
C33: Manzate | D33: lb | E33: =+AVERAGE('Input prices'!D$71 : 'Input prices'!D$77) -> 5.791666667 | F33: 14 | G33: =+F33*E33 -> 81.08333333
C34: Quadris | D34: fl oz | E34: =+AVERAGE('Input prices'!D$81:D$85) -> 1.542109375 | F34: 10 | G34: 15.42109375
C35: Bravo | D35: pt | E35: =+AVERAGE('Input prices'!D$89,'Input prices'!D$92,'Input prices'!D$94) -> 5.324166667 | F35: 1.5 | G35: 7.98625
C36: Cabrio | D36: oz | E36: =+AVERAGE('Input prices'!D$98:'Input prices'!D$103) -> 2.722229167 | F36: 10 | G36: 27.22229167
C37: Priaxor | D37: fl oz | E37: =+AVERAGE('Input prices'!D$107:D$109) -> 4.66140625 | F37: 6 | G37: 27.9684375
C38: Aprovia Top | D38: fl oz | E38: =+AVERAGE('Input prices'!D$114, 'Input prices'!D$115) -> 3.976367188 | F38: 24 | G38: 95.4328125
C39: 9. Insecticides
C40: Mustang Maxx | D40: fl oz | E40: =+AVERAGE('Input prices'!D$175:D$177) -> 1.575260417 | F40: 14.04 | G40: =+F40*E40 -> 22.11665625
C41: Coragen | D41: fl oz | E41: =+AVERAGE('Input prices'!D$181:D$185) -> 8.5665625 | F41: 2.75 | G41: =+F41*E41 -> 23.55804687
C42: Movento | D42: fl oz | E42: =+AVERAGE('Input prices'!D$190:D$192) -> 8.301041667 | F42: 4.5 | G42: 37.3546875
C43: Orthene | D43: lb | E43: =+AVERAGE('Input prices'!D$197,'Input prices'!D$198,'Input prices'!D$200,'Input prices'!D$202) -> 16.15083333 | F43: 0.375 | G43: 6.0565625
C44: 10. Herbicides
C45: Poast | D45: pt | E45: =+AVERAGE('Input prices'!D$206:D$210) -> 14.6046 | F45: 1.5 | G45: =+F45*E45 -> 21.9069
C46: Sandea | D46: oz | E46: =+AVERAGE('Input prices'!D$214:D$215) -> 34.1225 | F46: 0.75 | G46: =+F46*E46 -> 25.591875
C47: 11. Hired Labor
C48: Operator labor | D48: hour | E48: =+'Input prices'!B$219 -> 16.27 | F48: 6.69 | G48: =+F48*E48 -> 108.8463
C49: Transplant labor | D49: hours | E49: =+'Input prices'!B$220 -> 13.89 | F49: 28.84 | G49: =+E49*F49 -> 400.5876
C50: Harvest labor | D50: box | E50: =+'Input prices'!B$220/'Budget no PB'!D$9 -> 0.926 | F50: =+F$17 -> 1348.8 | G50: =+F50*E50 -> 1248.9888
C51: Grade/Packing labor | D51: box | E51: =+'Input prices'!B$220/'Budget no PB'!D$10 -> 1.389 | F51: =+F$17 -> 1348.8 | G51: =+F51*E51 -> 1873.4832
C52: Plastic removal | D52: hour | E52: =+'Input prices'!B$220 -> 13.89 | F52: 12 | G52: =+F52*E52 -> 166.68
C53: Plastic disposal | D53: hour | E53: =+'Input prices'!B$220 -> 13.89 | F53: 2 | G53: =+E53*F53 -> 27.78
C54: 12. Other Marketing and Harvesting Costs
C55: Cardboard boxes | D55: box | E55: =+AVERAGE('Input prices'!D$224:D226) -> 2.831428571 | F55: =+F$17 -> 1348.8 | G55: =+F55*E55 -> 3819.030857
C56: 13. Diesel Fuel
C57: Tractors | D57: gal | E57: =+'Input prices'!B$230 -> 4.99 | F57: =+Equipment!G$16 -> 21.49298597 | G57: =+F57*E57 -> 107.25
C58: 14. Repairs and Maintenance
C59: Tractor 2WD 75 HP | D59: acre | E59: =+Equipment!G$17 -> 7.90224 | F59: 1 | G59: =+F59*E59 -> 7.90224
C60: Implements | D60: acre | E60: =+Equipment!G$18 -> 6.62 | F60: 1 | G60: =+F60*E60 -> 6.62
C61: 15. Plastic Mulch Disposal
C62: Plastic mulch disposal | D62: fee per ton | E62: =+'Input prices'!B$234 -> 35 | F62: 0.14 | G62: =+F62*E62 -> 4.9
C63: 16. Operating interest | D63: Interest rate | E63: 0.0435 | G63: =+SUM(G20:G62)*0.5*E63 -> 412.422677
C64: TOTAL VARIABLE COSTS | G64: =SUM(G20:G62)+G63 -> 19374.38484
C66: FIXED COSTS
C67: 17. Irrigation | D67: acre | E67: 315.5 | F67: 1 | G67: =+F67*E67 -> 315.5
C68: 18. Power Equipment | D68: acre | E68: =+Equipment!G$19 -> 39.25942 | F68: 1 | G68: =+F68*E68 -> 39.25942
C69: 18. Implements | D69: acre | E69: =+Equipment!G$20 -> 17.15 | F69: 1 | G69: 17.15
C70: 19. Land Rent | D70: acre | E70: =+'Input prices'!B$239 -> 187 | F70: 1 | G70: 187
C71: TOTAL FIXED COSTS | G71: =SUM(G67:G70) -> 558.90942
C73: TOTAL COSTS | G73: =+G64+G71 -> 19933.29426
B500: 2022 SAMPLE BUDGET FOR LARGE SCALE BELL PEPPER
C502: Pepper Variety: | D502: Green (Aristotle)
C503: Production practice: | D503: Open field production + irrigated
C504: Operation Size: | D504: 1 acre
C505: Space between plants: | D505: 12 in
C506: Space between rows: | D506: 5 ft
C507: Yield: | D507: =YieldVariety!$B$21 -> 1348.8
C508: Harvesting rate (boxes/hour) | D508: 15
C509: Grading and Packing rate (boxes/hour) | D509: 10
C510: Breakeven-price ($ per 1 1/9 bu box) | D510: =+G572/F516 -> 14.77853963
C511: Breakeven-yield (1 1/9 bu boxes per acre) | D511: =+G572/E516 -> 1037.291982
C514: ITEM | D514: UNIT | E514: $/UNIT | F514: QUANTITY | G514: TOTAL
C515: GROSS RETURNS
C516: Bell Peppers | D516: box (1 1/9 bu) | E516: =+'Price graph'!$E$30 -> 19.21666667 | F516: =+D$8 -> 1348.8 | G516: =+F516*E516 -> 25919.44
C518: VARIABLE COSTS
C519: 1. Pepper plants | D519: plant | E519: =+AVERAGE('Input prices'!$E$3:$E$5) -> 0.1720666667 | F519: 17424 | G519: =+F519*E519 -> 2998.0896
C520: 2. Pre-plant: 10-10-10 Fertilizer | D520: 50 lb bag | E520: =+AVERAGE('Input prices'!$C$10:$C$14) -> 19.3585 | F520: 10 | G520: =+F520*E520 -> 193.585
C521: 2. Fertigation: Calcium Nitrate | D521: 50 lb bag | E521: =+AVERAGE('Input prices'!C$18:C$23) -> 24.95166667 | F521: 2.7 | G521: 67.3695
C522: 2. Fertigation: Potassium Nitrate | D522: 50 lb bag | E522: =+AVERAGE('Input prices'!C$27,'Input prices'!C$29) -> 35 | F522: 4.5 | G522: 157.5
C523: 3. Plastic mulch | D523: roll (4x4,000) | E523: =+AVERAGE('Input prices'!C$33:C$36) -> 166.99 | F523: 2.18 | G523: 364.0382
C524: 4. T-tape (drip tape, 750') | D524: roll (750') | E524: =+AVERAGE('Input prices'!C$40:C$41) -> 187.5 | F524: 11.616 | G524: 2178
C525: 5. Water costs | D525: ac-in | G525: 0
C526: 6. Stakes | D526: per 1400 stakes | E526: =+AVERAGE('Input prices'!C$46,'Input prices'!C$48,'Input prices'!C$49) -> 929.8933333 | F526: 4.148571 | G526: =+F526*E526 -> 3857.728516
C527: 7. Twine | D527: per 6,300 ft tube | E527: =+AVERAGE('Input prices'!D$54:D$56) -> 8.026666667 | F527: 8.297142857 | G527: =+F527*E527 -> 66.5984
C528: 8. Fumigant
C529: Telone C17 | D529: gal | E529: 20.3 | F529: 37.2 | G529: =+E529*F529 -> 755.16
C530: 8. Fungicides
C531: Kocide | D531: lb | E531: =+AVERAGE('Input prices'!D$62, 'Input prices'!D$63, 'Input prices'!D$65) -> 10.675 | F531: 15 | G531: =+F531*E531 -> 160.125
C532: Manzate | D532: lb | E532: =+AVERAGE('Input prices'!D$71 : 'Input prices'!D$77) -> 5.791666667 | F532: 14 | G532: =+F532*E532 -> 81.08333333
C533: Quadris | D533: fl oz | E533: =+AVERAGE('Input prices'!D$81:D$85) -> 1.542109375 | F533: 10 | G533: 15.42109375
C534: Bravo | D534: pt | E534: =+AVERAGE('Input prices'!D$89,'Input prices'!D$92,'Input prices'!D$94) -> 5.324166667 | F534: 1.5 | G534: 7.98625
C535: Cabrio | D535: oz | E535: =+AVERAGE('Input prices'!D$98:'Input prices'!D$103) -> 2.722229167 | F535: 10 | G535: 27.22229167
C536: Priaxor | D536: fl oz | E536: =+AVERAGE('Input prices'!D$107:D$109) -> 4.66140625 | F536: 6 | G536: 27.9684375
C537: Aprovia Top | D537: fl oz | E537: =+AVERAGE('Input prices'!D$114, 'Input prices'!D$115) -> 3.976367188 | F537: 24 | G537: 95.4328125
C538: 9. Insecticides
C539: Mustang Maxx | D539: fl oz | E539: =+AVERAGE('Input prices'!D$175:D$177) -> 1.575260417 | F539: 14.04 | G539: =+F539*E539 -> 22.11665625
C540: Coragen | D540: fl oz | E540: =+AVERAGE('Input prices'!D$181:D$185) -> 8.5665625 | F540: 2.75 | G540: =+F540*E540 -> 23.55804687
C541: Movento | D541: fl oz | E541: =+AVERAGE('Input prices'!D$190:D$192) -> 8.301041667 | F541: 4.5 | G541: 37.3546875
C542: Orthene | D542: lb | E542: =+AVERAGE('Input prices'!D$197,'Input prices'!D$198,'Input prices'!D$200,'Input prices'!D$202) -> 16.15083333 | F542: 0.375 | G542: 6.0565625
C543: 10. Herbicides
C544: Poast | D544: pt | E544: =+AVERAGE('Input prices'!D$206:D$210) -> 14.6046 | F544: 1.5 | G544: =+F544*E544 -> 21.9069
C545: Sandea | D545: oz | E545: =+AVERAGE('Input prices'!D$214:D$215) -> 34.1225 | F545: 0.75 | G545: =+F545*E545 -> 25.591875
C546: 11. Hired Labor
C547: Operator labor | D547: hour | E547: =+'Input prices'!B$219 -> 16.27 | F547: 6.69 | G547: =+F547*E547 -> 108.8463
C548: Transplant labor | D548: hours | E548: =+'Input prices'!B$220 -> 13.89 | F548: 28.84 | G548: =+E548*F548 -> 400.5876
C549: Harvest labor | D549: box | E549: =+'Input prices'!B$220/'Budget no PB'!D$9 -> 0.926 | F549: =+F$17 -> 1348.8 | G549: =+F549*E549 -> 1248.9888
C550: Grade/Packing labor | D550: box | E550: =+'Input prices'!B$220/'Budget no PB'!D$10 -> 1.389 | F550: =+F$17 -> 1348.8 | G550: =+F550*E550 -> 1873.4832
C551: Plastic removal | D551: hour | E551: =+'Input prices'!B$220 -> 13.89 | F551: 12 | G551: =+F551*E551 -> 166.68
C552: Plastic disposal | D552: hour | E552: =+'Input prices'!B$220 -> 13.89 | F552: 2 | G552: =+E552*F552 -> 27.78
C553: 12. Other Marketing and Harvesting Costs
C554: Cardboard boxes | D554: box | E554: =+AVERAGE('Input prices'!D$224:D725) -> 2.831428571 | F554: =+F$17 -> 1348.8 | G554: =+F554*E554 -> 3819.030857
C555: 13. Diesel Fuel
C556: Tractors | D556: gal | E556: =+'Input prices'!B$230 -> 4.99 | F556: =+Equipment!G$16 -> 21.49298597 | G556: =+F556*E556 -> 107.25
C557: 14. Repairs and Maintenance
C558: Tractor 2WD 75 HP | D558: acre | E558: =+Equipment!G$17 -> 7.90224 | F558: 1 | G558: =+F558*E558 -> 7.90224
C559: Implements | D559: acre | E559: =+Equipment!G$18 -> 6.62 | F559: 1 | G559: =+F559*E559 -> 6.62
C560: 15. Plastic Mulch Disposal
C561: Plastic mulch disposal | D561: fee per ton | E561: =+'Input prices'!B$234 -> 35 | F561: 0.14 | G561: =+F561*E561 -> 4.9
C562: 16. Operating interest | D562: Interest rate | E562: 0.0435 | G562: =+SUM(G519:G561)*0.5*E562 -> 412.422677
C563: TOTAL VARIABLE COSTS | G563: =SUM(G519:G561)+G562 -> 19374.38484
C565: FIXED COSTS
C566: 17. Irrigation | D566: acre | E566: 315.5 | F566: 1 | G566: =+F566*E566 -> 315.5
C567: 18. Power Equipment | D567: acre | E567: =+Equipment!G$19 -> 39.25942 | F567: 1 | G567: =+F567*E567 -> 39.25942
C568: 18. Implements | D568: acre | E568: =+Equipment!G$20 -> 17.15 | F568: 1 | G568: 17.15
C569: 19. Land Rent | D569: acre | E569: =+'Input prices'!B$239 -> 187 | F569: 1 | G569: 187
C570: TOTAL FIXED COSTS | G570: =SUM(G566:G569) -> 558.90942
C572: TOTAL COSTS | G572: =+G563+G570 -> 19933.29426
C574: TOTAL COSTS | G574: =+G565+G572 -> 19933.29426

Sheet Budget PB
B1: 2022 SAMPLE BUDGET FOR LARGE SCALE BELL PEPPER
C3: Pepper Variety: | D3: Green (Aristotle)
C4: Production practice: | D4: Open field production + irrigated
C5: Operation Size: | D5: 1 acre
C6: Space between plants: | D6: 12 in
C7: Space between rows: | D7: 5 ft | I7: 0
C8: Yield (box (1 1/9 bu) per acre): | D8: =+YieldVariety!B$21 -> 1348.8 | I8: 0.1
C9: Assumption related to yield losses due to Phytophthora Blight | D9: 0.1 | I9: 0.2
C10: Harvesting rate (boxes/hour) | D10: 15 | I10: 0.3
C11: Grading and Packing rate (boxes/hour) | D11: 10 | I11: 0.4
C12: Breakeven-price ($ per 1 1/9 bu box) | D12: =+G$82/F$19 -> 16.23311061 | I12: 0.5
C13: Breakeven-yield (1 1/9 bu boxes per acre) | D13: =+G$82/E$19 -> 1025.448272
C14: Net returns Difference PB vs. No PB scenarios | D14: =+(G19-G82)-('Budget no PB'!G17-'Budget no PB'!G73) -> -2364.34737
C17: ITEM | D17: UNIT | E17: $/UNIT | F17: QUANTITY | G17: TOTAL
C18: GROSS RETURNS
C19: Bell Peppers | D19: box (1 1/9 bu) | E19: =+'Price graph'!E$30 -> 19.21666667 | F19: =D$8*(1-D$9) -> 1213.92 | G19: =+F19*E19 -> 23327.496
C21: VARIABLE COSTS
C22: 1. Pepper plants | D22: plant | E22: =+'Budget no PB'!$E$20 -> 0.1720666667 | F22: 17424 | G22: =+F22*E22 -> 2998.0896
C23: 2. Pre-plant: 10-10-10 Fertilizer | D23: 50 lb bag | E23: =+'Budget no PB'!E$21 -> 19.3585 | F23: 10 | G23: =+F23*E23 -> 193.585
C24: 2. Fertigation: Calcium Nitrate | D24: 50 lb bag | E24: =+'Budget no PB'!E$22 -> 24.95166667 | F24: 2.7 | G24: 67.3695
C25: 2. Fertigation: Potassium Nitrate | D25: 50 lb bag | E25: =+'Budget no PB'!E$23 -> 35 | F25: 4.5 | G25: 157.5
C26: 3. Plastic mulch | D26: roll (4x4,000) | E26: =+'Budget no PB'!E$24 -> 166.99 | F26: 2.18 | G26: 364.0382
C27: 4. T-tape (drip tape, 750') | D27: roll (750') | E27: =+'Budget no PB'!E$25 -> 187.5 | F27: 11.616 | G27: 2178
C28: 5. Water costs | D28: ac-in | G28: 0
C29: 6. Stakes | D29: per 1400 stakes | E29: =+'Budget no PB'!E$27 -> 929.8933333 | F29: 4.148571 | G29: =+F29*E29 -> 3857.728516
C30: 7. Twine | D30: per 6,300 ft tube | E30: =+'Budget no PB'!E$28 -> 8.026666667 | F30: 8.297142857 | G30: =+F30*E30 -> 66.5984
C31: 8. Fumigant
C32: Telone C17 | D32: gal | E32: =+'Budget no PB'!E$30 -> 20.3 | F32: 37.2 | G32: =+F32*E32 -> 755.16
C33: 8. Fungicides
C34: Kocide | D34: lb | E34: =+'Budget no PB'!E$32 -> 10.675 | F34: 15 | G34: =+F34*E34 -> 160.125
C35: Manzate | D35: lb | E35: =+'Budget no PB'!E$33 -> 5.791666667 | F35: 14 | G35: =+F35*E35 -> 81.08333333
C36: Quadris | D36: fl oz | E36: =+'Budget no PB'!E$34 -> 1.542109375 | F36: 10 | G36: 15.42109375
C37: Bravo | D37: pt | E37: =+'Budget no PB'!E$35 -> 5.324166667 | F37: 1.5 | G37: 7.98625
C38: Cabrio | D38: oz | E38: =+'Budget no PB'!E$36 -> 2.722229167 | F38: 10 | G38: 27.22229167
C39: Priaxor | D39: fl oz | E39: =+'Budget no PB'!E$37 -> 4.66140625 | F39: 6 | G39: 27.9684375
C40: Aprovia Top | D40: fl oz | E40: =+'Budget no PB'!E$38 -> 3.976367188 | F40: 24 | G40: 95.4328125
C41: Orondis Gold 200 | D41: fl oz | E41: =+AVERAGE('Input prices'!D$120) -> 2.34375 | F41: 9.6 | G41: 22.5
C42: Ridomil Gold SL | D42: pt | E42: =+AVERAGE('Input prices'!D$126,'Input prices'!D$127,'Input prices'!D$128, 'Input prices'!D$130,'Input prices'!D$131,'Input prices'!D$132) -> 117.1083333 | F42: 1 | G42: 117.1083333
C43: Ranman | D43: fl oz | E43: =+AVERAGE('Input prices'!D$136:D$142) -> 8.102622768 | F43: 5.5 | G43: 44.56442522
C44: Revus | D44: fl oz | E44: =+AVERAGE('Input prices'!D$146,'Input prices'!D$147,'Input prices'!D$149) -> 3.489322917 | F44: 16 | G44: 55.82916667
C45: Presidio | D45: fl oz | E45: =+AVERAGE('Input prices'!D$153:D$157) -> 10.43425 | F45: 8 | G45: 83.474
C46: Zampro | D46: fl oz | E46: =+AVERAGE('Input prices'!D$161:D$163) -> 2.809285714 | F46: 14 | G46: 39.33
C47: Orondis Ultra | D47: fl oz | E47: 6.2203125 | F47: 16 | G47: 99.525
C48: 9. Insecticides
C49: Mustang Maxx | D49: fl oz | E49: =+'Budget no PB'!E$40 -> 1.575260417 | F49: 14.04 | G49: =+F49*E49 -> 22.11665625
C50: Coragen | D50: fl oz | E50: =+'Budget no PB'!E$41 -> 8.5665625 | F50: 2.75 | G50: =+F50*E50 -> 23.55804687
C51: Movento | D51: fl oz | E51: =+'Budget no PB'!E$42 -> 8.301041667 | F51: 4.5 | G51: 37.3546875
C52: Orthene | D52: lb | E52: =+'Budget no PB'!E$43 -> 16.15083333 | F52: 0.375 | G52: 6.0565625
C53: 10. Herbicides
C54: Poast | D54: pt | E54: =+'Budget no PB'!E$45 -> 14.6046 | F54: 1.5 | G54: =+F54*E54 -> 21.9069
C55: Sandea | D55: oz | E55: =+'Budget no PB'!E$46 -> 34.1225 | F55: 0.75 | G55: =+F55*E55 -> 25.591875
C56: 11. Hired Labor
C57: Operator labor | D57: hour | E57: =+'Input prices'!B$219 -> 16.27 | F57: 6.6 | G57: =+F57*E57 -> 107.382
C58: Transplant labor | D58: hours | E58: =+'Input prices'!B$220 -> 13.89 | F58: 28.84 | G58: =+F58*E58 -> 400.5876
C59: Harvest labor | D59: box | E59: =+'Input prices'!B$220/'Budget PB'!D$10 -> 0.926 | F59: =+F$19 -> 1213.92 | G59: =+E59*F59 -> 1124.08992
C60: Grade/Packing labor | D60: box | E60: =+'Input prices'!B$220/'Budget PB'!D$11 -> 1.389 | F60: =+F$19 -> 1213.92 | G60: =+E60*F60 -> 1686.13488
C61: Plastic removal | D61: hour | E61: =+'Input prices'!B$220 -> 13.89 | F61: 12 | G61: =+F61*E61 -> 166.68
C62: Plastic disposal | D62: hour | E62: =+'Input prices'!B$220 -> 13.89 | F62: 2 | G62: 27.78
C63: 12. Other Marketing and Harvesting Costs
C64: Cardboard boxes | D64: box | E64: =+AVERAGE('Input prices'!D$224:D$226) -> 2.831428571 | F64: =+F$19 -> 1213.92 | G64: =+F64*E64 -> 3437.127771
C65: 13. Diesel Fuel
C66: Tractors | D66: gal | E66: =+'Input prices'!B$230 -> 4.99 | F66: =+Equipment!F$16 -> 22.74549098 | G66: =+F66*E66 -> 113.5
C67: 14. Repairs and Maintenance
C68: Tractor 2WD 75 HP | D68: acre | E68: =+Equipment!F$17 -> 8.30224 | F68: 1 | G68: =+F68*E68 -> 8.30224
C69: Implements | D69: acre | E69: =+Equipment!F$18 -> 7.37 | F69: 1 | G69: =+F69*E69 -> 7.37
C70: 15. Plastic Mulch Disposal
C71: Plastic mulch disposal | D71: fee per ton | E71: =+'Input prices'!B$234 -> 35 | F71: 0.14 | G71: =+F71*E71 -> 4.9
C72: 16. Operating interest | D72: Interest rate | E72: 0.0435 | G72: =SUM(G22:G71)*0.5*E72 -> 407.5097074
C73: TOTAL VARIABLE COSTS | G73: =SUM(G22:G71)+G72 -> 19143.58821
C75: FIXED COSTS
C76: 17. Irrigation | D76: acre | E76: 315.5 | F76: 1 | G76: =+F76*E76 -> 315.5
C77: 18. Power Equipment | D77: acre | E77: =+Equipment!F$19 -> 41.60942 | F77: 1 | G77: =+F77*E77 -> 41.60942
C78: 18. Implements | D78: acre | E78: =+Equipment!F$20 -> 18 | F78: 1 | G78: =+F78*E78 -> 18
C79: 19. Land Rent | D79: acre | E79: =+'Input prices'!B$239 -> 187 | F79: 1 | G79: 187
C80: TOTAL FIXED COSTS | G80: =SUM(G76:G79) -> 562.10942
C82: TOTAL COSTS | G82: =+G73+G80 -> 19705.69763
B499: 2022 SAMPLE BUDGET FOR LARGE SCALE BELL PEPPER
C501: Pepper Variety: | D501: Green (Aristotle)
C502: Production practice: | D502: Open field production + irrigated
C503: Operation Size: | D503: 1 acre
C504: Space between plants: | D504: 12 in
C505: Space between rows: | D505: 5 ft
C506: Yield: | D506: =+YieldVariety!B$21 -> 1348.8
C507: Assumption related to yield losses due to Phytophthora Blight | D507: 0.1
C508: Harvesting rate (boxes/hour) | D508: 15
C509: Grading and Packing rate (boxes/hour) | D509: 10
C510: Breakeven-price ($ per 1 1/9 bu box) | D510: =+G$82/F$19 -> 16.23311061
C511: Breakeven-yield (1 1/9 bu boxes per acre) | D511: =+G$82/E$19 -> 1025.448272
C512: Net returns Difference PB vs. No PB scenarios | D512: =+(G517-G580)-('Budget no PB'!G517-'Budget no PB'!G573) -> 3621.798373
C515: ITEM | D515: UNIT | E515: $/UNIT | F515: QUANTITY | G515: TOTAL
C516: GROSS RETURNS
C517: Bell Peppers | D517: box (1 1/9 bu) | E517: =+'Price graph'!E$30 -> 19.21666667 | F517: =+'Budget no PB'!F$17*(1-D$9) -> 1213.92 | G517: =+F517*E517 -> 23327.496
C519: VARIABLE COSTS
C520: 1. Pepper plants | D520: plant | E520: =+'Budget no PB'!$E$20 -> 0.1720666667 | F520: 17424 | G520: =+F520*E520 -> 2998.0896
C521: 2. Pre-plant: 10-10-10 Fertilizer | D521: 50 lb bag | E521: =+'Budget no PB'!E$21 -> 19.3585 | F521: 10 | G521: =+F521*E521 -> 193.585
C522: 2. Fertigation: Calcium Nitrate | D522: 50 lb bag | E522: =+'Budget no PB'!E$22 -> 24.95166667 | F522: 2.7 | G522: 67.3695
C523: 2. Fertigation: Potassium Nitrate | D523: 50 lb bag | E523: =+'Budget no PB'!E$23 -> 35 | F523: 4.5 | G523: 157.5
C524: 3. Plastic mulch | D524: roll (4x4,000) | E524: =+'Budget no PB'!E$24 -> 166.99 | F524: 2.18 | G524: 364.0382
C525: 4. T-tape (drip tape, 750') | D525: roll (750') | E525: =+'Budget no PB'!E$25 -> 187.5 | F525: 11.616 | G525: 2178
C526: 5. Water costs | D526: ac-in | G526: 0
C527: 6. Stakes | D527: per 1400 stakes | E527: =+'Budget no PB'!E$27 -> 929.8933333 | F527: 4.148571 | G527: =+F527*E527 -> 3857.728516
C528: 7. Twine | D528: per 6,300 ft tube | E528: =+'Budget no PB'!E$28 -> 8.026666667 | F528: 8.297142857 | G528: =+F528*E528 -> 66.5984
C529: 8. Fumigant
C530: Telone C17 | D530: gal | E530: =+'Budget no PB'!E$30 -> 20.3 | F530: 37.2 | G530: =+F530*E530 -> 755.16
C531: 8. Fungicides
C532: Kocide | D532: lb | E532: =+'Budget no PB'!E$32 -> 10.675 | F532: 15 | G532: =+F532*E532 -> 160.125
C533: Manzate | D533: lb | E533: =+'Budget no PB'!E$33 -> 5.791666667 | F533: 14 | G533: =+F533*E533 -> 81.08333333
C534: Quadris | D534: fl oz | E534: =+'Budget no PB'!E$34 -> 1.542109375 | F534: 10 | G534: 15.42109375
C535: Bravo | D535: pt | E535: =+'Budget no PB'!E$35 -> 5.324166667 | F535: 1.5 | G535: 7.98625
C536: Cabrio | D536: oz | E536: =+'Budget no PB'!E$36 -> 2.722229167 | F536: 10 | G536: 27.22229167
C537: Priaxor | D537: fl oz | E537: =+'Budget no PB'!E$37 -> 4.66140625 | F537: 6 | G537: 27.9684375
C538: Aprovia Top | D538: fl oz | E538: =+'Budget no PB'!E$38 -> 3.976367188 | F538: 24 | G538: 95.4328125
C539: Orondis Gold 200 | D539: fl oz | E539: =+AVERAGE('Input prices'!D$120) -> 2.34375 | F539: 9.6 | G539: 22.5
C540: Ridomil Gold SL | D540: pt | E540: =+AVERAGE('Input prices'!D$126,'Input prices'!D$127,'Input prices'!D$128, 'Input prices'!D$130,'Input prices'!D$131,'Input prices'!D$132) -> 117.1083333 | F540: 1 | G540: 117.1083333
C541: Ranman | D541: fl oz | E541: =+AVERAGE('Input prices'!D$136:D$142) -> 8.102622768 | F541: 5.5 | G541: 44.56442522
C542: Revus | D542: fl oz | E542: =+AVERAGE('Input prices'!D$146,'Input prices'!D$147,'Input prices'!D$149) -> 3.489322917 | F542: 16 | G542: 55.82916667
C543: Presidio | D543: fl oz | E543: =+AVERAGE('Input prices'!D$153:D$157) -> 10.43425 | F543: 8 | G543: 83.474
C544: Zampro | D544: fl oz | E544: =+AVERAGE('Input prices'!D$161:D$163) -> 2.809285714 | F544: 14 | G544: 39.33
C545: Orondis Ultra | D545: fl oz | E545: 6.2203125 | F545: 16 | G545: 99.525
C546: 9. Insecticides
C547: Mustang Maxx | D547: fl oz | E547: =+'Budget no PB'!E$40 -> 1.575260417 | F547: 14.04 | G547: =+F547*E547 -> 22.11665625
C548: Coragen | D548: fl oz | E548: =+'Budget no PB'!E$41 -> 8.5665625 | F548: 2.75 | G548: =+F548*E548 -> 23.55804687
C549: Movento | D549: fl oz | E549: =+'Budget no PB'!E$42 -> 8.301041667 | F549: 4.5 | G549: 37.3546875
C550: Orthene | D550: lb | E550: =+'Budget no PB'!E$43 -> 16.15083333 | F550: 0.375 | G550: 6.0565625
C551: 10. Herbicides
C552: Poast | D552: pt | E552: =+'Budget no PB'!E$45 -> 14.6046 | F552: 1.5 | G552: =+F552*E552 -> 21.9069
C553: Sandea | D553: oz | E553: =+'Budget no PB'!E$46 -> 34.1225 | F553: 0.75 | G553: =+F553*E553 -> 25.591875
C554: 11. Hired Labor
C555: Operator labor | D555: hour | E555: =+'Input prices'!B$219 -> 16.27 | F555: 6.6 | G555: =+F555*E555 -> 107.382
C556: Transplant labor | D556: hours | E556: =+'Input prices'!B$220 -> 13.89 | F556: 28.84 | G556: =+F556*E556 -> 400.5876
C557: Harvest labor | D557: box | E557: =+'Input prices'!B$220/'Budget PB'!D$10 -> 0.926 | F557: =+F$19 -> 1213.92 | G557: =+E557*F557 -> 1124.08992
C558: Grade/Packing labor | D558: box | E558: =+'Input prices'!B$220/'Budget PB'!D$11 -> 1.389 | F558: =+F$19 -> 1213.92 | G558: =+E558*F558 -> 1686.13488
C559: Plastic removal | D559: hour | E559: =+'Input prices'!B$220 -> 13.89 | F559: 12 | G559: =+F559*E559 -> 166.68
C560: Plastic disposal | D560: hour | E560: =+'Input prices'!B$220 -> 13.89 | F560: 2 | G560: 27.78
C561: 12. Other Marketing and Harvesting Costs
C562: Cardboard boxes | D562: box | E562: =+AVERAGE('Input prices'!D$224:D$226) -> 2.831428571 | F562: =+F$19 -> 1213.92 | G562: =+F562*E562 -> 3437.127771
C563: 13. Diesel Fuel
C564: Tractors | D564: gal | E564: =+'Input prices'!B$230 -> 4.99 | F564: =+Equipment!F$16 -> 22.74549098 | G564: =+F564*E564 -> 113.5
C565: 14. Repairs and Maintenance
C566: Tractor 2WD 75 HP | D566: acre | E566: =+Equipment!F$17 -> 8.30224 | F566: 1 | G566: =+F566*E566 -> 8.30224
C567: Implements | D567: acre | E567: =+Equipment!F$18 -> 7.37 | F567: 1 | G567: =+F567*E567 -> 7.37
C568: 15. Plastic Mulch Disposal
C569: Plastic mulch disposal | D569: fee per ton | E569: =+'Input prices'!B$234 -> 35 | F569: 0.14 | G569: =+F569*E569 -> 4.9
C570: 16. Operating interest | D570: Interest rate | E570: 0.0435 | G570: =SUM(G520:G569)*0.5*E570 -> 407.5097074
C571: TOTAL VARIABLE COSTS | G571: =SUM(G520:G569)+G570 -> 19143.58821
C573: FIXED COSTS
C574: 17. Irrigation | D574: acre | E574: 315.5 | F574: 1 | G574: =+F574*E574 -> 315.5
C575: 18. Power Equipment | D575: acre | E575: =+Equipment!F$19 -> 41.60942 | F575: 1 | G575: =+F575*E575 -> 41.60942
C576: 18. Implements | D576: acre | E576: =+Equipment!F$20 -> 18 | F576: 1 | G576: =+F576*E576 -> 18
C577: 19. Land Rent | D577: acre | E577: =+'Input prices'!B$239 -> 187 | F577: 1 | G577: 187
C578: TOTAL FIXED COSTS | G578: =SUM(G574:G577) -> 562.10942
C580: TOTAL COSTS | G580: =+G571+G578 -> 19705.69763

Sheet Input prices (hidden)
A1: Pepper Plants (Aristotle or similar green pepper varieties)
A2: Suppliers | B2: Variety | C2: Unit (No. plants) | D2: Price | E2: Price per plant | F2: Minmum order | G2: Website
A3: Evansvegetableplants | B3: Same price regardless of variety | C3: 1000 | D3: 195 | E3: =+D3/C3 -> 0.195 | F3: 300 | G3: https://www.evansvegetableplants.com/store
A4: Aaron's Creek Farms Wholesale Plant Nursery | C4: 500 | D4: =+E4*C4 -> 105.6 | E4: 0.2112 | F4: 280 | G4: http://www.acfplugs.com/%5Cfiles%5CPlug%20Catalog.pdf
A5: First Step Farm of WNC, Inc. Donations | C5: 1000 | D5: 110 | E5: =+D5/C5 -> 0.11 | F5: 1000 | G5: https://firststepfarmwnc.org/Men_s_Facility.html
A7: FERTILIZERS
A8: Plant Starter (10-10-10)
A9: Suppliers | B9: Unit (lb) | C9: Price | D9: Price per lb | E9: Minmum order (lb) | F9: Website
A10: Ag Central Farmer Coop Maryville | B10: 40 | C10: =+(15.49*B11)/B10 -> 19.3625 | D10: =+C10/B10 -> 0.4840625 | E10: 40 lb | F10: https://www.ourcoop.com/locations/agcentral-maryville
A11: Knox Farmer Coop | B11: 50 | C11: 18.99 | D11: =+C11/B11 -> 0.3798 | E11: 50 lb | F11: https://www.ourcoop.com/locations/knox-farmers-knoxville
A12: Jefferson County Co-op 10-10-10 | B12: 50 | C12: 20.5 | D12: =+C12/B12 -> 0.41
A13: Grainger County Co-op 10-10-10 | B13: 50 | C13: 17.99 | D13: =+C13/B13 -> 0.3598
A14: Seed World | B14: 50 | C14: 19.95 | D14: =+C14/B14 -> 0.399 | E14: 50 lb | F14: https://www.seedworldusa.com/products/growers-all-purpose-10-10-10-fertilizer-50-lbs
A16: Calcium Nitrate
A17: Suppliers | B17: Unit (lb) | C17: Price | D17: Price per lb | E17: Minmum order (lb) | F17: Website
A18: Ag Central Farmer Coop Maryville | B18: 50 | C18: 21.25 | D18: =+C18/B18 -> 0.425 | E18: 50 lb
A19: Jefferson County Co-op | B19: 50 | C19: 25 | D19: =C19/B19 -> 0.5
A20: Grainger County Co-op | B20: 50 | C20: 26 | D20: =C20/B20 -> 0.52
A21: Irrigation Mart | B21: 50 | C21: 23.96 | D21: =+C21/B21 -> 0.4792 | E21: 50 lb | F21: https://www.irrigation-mart.com/items/FERT-CANITRATE
A22: Nolts Produce Supplies | B22: 50 | C22: 24.5 | D22: =+C22/B22 -> 0.49 | E22: 50 lb
A23: Ag Care | B23: 50 | C23: 29 | D23: =+C23/B23 -> 0.58 | E23: 50 lb | F23: https://www.agcareproducts.com/products/calcium-nitrate-tropicote-notgg?_pos=1&_sid=da78aed0a&_ss=r
A25: Potassium Nitrate
A26: Suppliers | B26: Unit (lb) | C26: Price | D26: Price per lb | E26: Minmum order (lb) | F26: Website
A27: Jefferson County Co-op | B27: 50 | C27: 37.5 | D27: =C27/B27 -> 0.75
A28: Grainger County Co-op | B28: 50 | C28: 53 | D28: =C28/B28 -> 1.06
A29: Ag Central Farmer Coop Maryville | B29: 50 | C29: 32.5 | D29: =+C29/B29 -> 0.65 | E29: 50 lb
A31: BLACK PLASTIC
A32: Suppliers | B32: Unit (roll 4000 feet by 4 feet) | C32: Price | D32: Price per 100 ft | E32: Minimum order | F32: Website
A33: Rainflo irrigation | B33: 1 | C33: 132 | D33: =+(C33*100)/4000 -> 3.3 | E33: 4 x 4000 - price vary by roll size | F33: https://www.rainfloirrigation.com/growing-supplies/plastic-mulch/embossed-plastic
A34: Berry Hill Irrigation | B34: 1 | C34: 154 | D34: =+(C34*100)/4000 -> 3.85 | E34: 4 x 600 - price vary by role size | F34: http://www.johnnyseeds.com/p-9198-black-mulch-4-x-4000-embossed.aspx
A35: Grainger County Co-op | B35: 1 | C35: 200 | D35: =+(C35*100)/4000 -> 5
A36: Irrigation Mart | B36: 1 | C36: 181.96 | D36: =+(C36*100)/4000 -> 4.549 | E36: 4 x 2400 - price vary by role size | F36: https://www.irrigation-mart.com/categories/PLASTICULTURE-SUPPLIES/MULCH-FILM/BLACK-NON-DEGRADABLE-MULCH-FILM
A38: DRIP LINE | B38: T-tape model #508-08-340
A39: Suppliers | B39: Unit (roll) | C39: Price | D39: Price per foot | E39: Website
A40: Rain flo | B40: 750 | C40: 190 | D40: 0.2533333333 | E40: https://www.rainfloirrigation.com/irrigation/drip-tape/t-tape
A41: Grainger County Co-op | B41: 750 | C41: 185 | D41: =185/750 -> 0.2466666667
A44: WOOD STAKES
A45: Suppliers | B45: Unit (stakes 5 ft) | C45: Price | D45: Price per stake | E45: Website
A46: Nolts produce supplies | B46: 1400 | C46: =1400*0.87 -> 1218 | D46: =+C46/B46 -> 0.87 | E46: https://www.noltsproducesupplies.net/NPScatalog.pdf
A47: Ag Care | B47: 1 | C47: 1.25 | D47: =+C47/B47 -> 1.25
A48: Morgan County Seeds | B48: 1400 | C48: 940 | D48: =+C48/B48 -> 0.6714285714 | E48: https://www.morgancountyseeds.com/product/60oak-tomato-stakes/
A49: Irrigation Mart | B49: 1400 | C49: =56*11.28 -> 631.68 | D49: =+C49/B49 -> 0.4512 | E49: https://www.irrigation-mart.com/item-search?q=stakes
A50: Knoxville/Maryville 60" to 72 ") | B50: 1 | C50: 1.99 | D50: =+C50/B50 -> 1.99
A52: TWINE/STRING
A53: Suppliers | B53: Unit (box/tube) | C53: Price | D53: Price per box/tube | E53: Website
A54: Knox/Marville | B54: 3 lb box (6300 ft) | C54: 8.99 | D54: =+C54 -> 8.99
A55: Ag Care | B55: 3 lb box (6300 ft) | C55: 7.59 | D55: =+C55 -> 7.59 | E55: https://www.agcareproducts.com/products/3-6300-box-tomato-twine?_pos=3&_sid=da73d3935&_ss=r
A56: Nolts produce supplies | B56: 3 lb box (6300 ft) | C56: 7.5 | D56: 7.5 | E56: https://www.noltsproducesupplies.net/NPScatalog.pdf
A58: FUNGICIDES
A60: Kocide
A61: Suppliers | B61: Unit (lb) | C61: Price | D61: Price per lb | E61: Website
A62: Maryville | B62: 10 | C62: 101.9 | D62: =+C62/B62 -> 10.19
A63: Knoxville coop | B63: 4 | C63: 42.39 | D63: 10.5975
A64: Grainger County Co-op | B64: 4 | C64: 25 | D64: 6.25
A65: Keystone Pest Solutio | B65: 4 | C65: 44.95 | D65: 11.2375 | E65: https://www.keystonepestsolutions.com/kocide-3000-fungicide-4-pounds-387
A66: Martin's produce supplies | B66: 4 | C66: 32.73 | D66: 8.1825 | E66: https://martinsproducesupplies.com/product/kocide-3000-fungicide/
A67: Ag Care | B67: 4 | C67: 32 | D67: 8 | E67: https://www.agcareproducts.com/products/kocide-3000-o-4?_pos=2&_sid=edbe67230&_ss=r
A69: Manzate
A70: Suppliers | B70: Unit (lb) | C70: Price | D70: Price per lb | E70: Website
A71: Maryville | B71: 6 | C71: 35.8 | D71: =+C71/B71 -> 5.966666667
A72: Grainger County Co-op | B72: 6 | C72: 35 | D72: 5.833333333
A73: Grainger County Co-op | B73: 30 | C73: 140 | D73: =+C73/B73 -> 4.666666667
A74: Keystone Pest Solution | B74: 6 | C74: 34.95 | D74: 5.825 | E74: https://www.keystonepestsolutions.com/manzate-pro-stick-mancozeb-fungicide-6-pounds-144
A75: Martin's produce supplies | B75: 6 | C75: 24.55 | D75: 4.091666667 | E75: https://martinsproducesupplies.com/product/manzate-pro-stick-fungicide/
A76: Militello Farm Supply Inc | B76: 6 | C76: 45.95 | D76: 7.658333333
A77: Ag Care | B77: 6 | C77: 39 | D77: 6.5 | E77: https://www.agcareproducts.com/products/manzate-6-bags?_pos=2&_sid=3ddd6bb78&_ss=r
A79: Quadris
A80: Suppliers | B80: Unit (gal, fl oz) | C80: Price | D80: Price per fl oz | E80: Website
A81: Jefferson County Co-op | B81: 2.5gal | C81: 430 | D81: =+C81/(128*2.5) -> 1.34375
A82: Grainger County Co-op (Tetrobrand) | B82: 2.5 gal | C82: 540 | D82: =+C82/(128*2.5) -> 1.6875
A83: Keystone Pest Solution | B83: gal | C83: 224.95 | D83: =+C83/128 -> 1.757421875 | E83: https://www.keystonepestsolutions.com/quadris-fungicide-1-gallon-same-ai-as-acadia-2sc-212
A84: Ag Care | B84: gal | C84: 199 | D84: =+C84/128 -> 1.5546875 | E84: https://www.agcareproducts.com/products/quadris-1-gal?_pos=1&_sid=077e24b05&_ss=r
A85: Martin's produce supplies | B85: gal | C85: 175 | D85: 1.3671875 | E85: https://martinsproducesupplies.com/product/quadris-fungicide-1-gal/
A87: Bravo
A88: Suppliers | B88: Unit | C88: Price | D88: Price per pt | E88: Website
A89: Maryville | B89: 2.5 gal | C89: 105.5 | D89: =+C89/20 -> 5.275
A90: Jefferson County Co-op | B90: 2.5 | C90: 140 | D90: =+C90/20 -> 7
A91: Grainger County Co-op | B91: 2.5 | C91: 250 | D91: 12.5
A92: Keystone pest solution | B92: 2.5 gal | C92: 118.95 | D92: =+C92/20 -> 5.9475 | E92: https://www.keystonepestsolutions.com/search/results?search_in_description=1&site_url_advance_search=https%3A%2F%2Fwww.keystonepestsolutions.com&keyword=bravo
A93: Martin's produce supplies | B93: 2.5 gal | C93: 83.52 | D93: 4.176 | E93: https://martinsproducesupplies.com/product/bravo-weatherstick-fungicide/
A94: Ag Care | B94: 2.5 gal | C94: 95 | D94: 4.75 | E94: https://www.agcareproducts.com/products/bravo-2-5-chlorothalonil?_pos=2&_sid=a333562c1&_ss=r
A96: Cabrio
A97: Suppliers | B97: Unit (lb, oz) | C97: Price | D97: Price per oz | E97: Website
A98: Knoxville | B98: 5 lb | C98: 201.7 | D98: =+C98/80 -> 2.52125
A99: Jefferson County Co-op | B99: 5 | C99: 240 | D99: =+C99/80 -> 3
A100: Grainger County Co-op | B100: 5lb | C100: 250 | D100: =+C100/80 -> 3.125
A101: Ag Care | B101: 5 lb | C101: 194 | D101: =+C101/80 -> 2.425 | E101: https://www.agcareproducts.com/products/5085-cabrio-fungicide-5?_pos=1&_sid=b9b9ce41f&_ss=r
A102: Martin's produce supplies | B102: 5 lb | C102: 196.02 | D102: 2.45025
A103: Keystone Pest Solution | B103: 5 lb | C103: 224.95 | D103: 2.811875 | E103: https://www.keystonepestsolutions.com/cabrio-fungicide-5-pounds-256
A105: Priaxor
A106: Suppliers | B106: Unit (fl oz, gal) | C106: Price | D106: Price per fl oz | E106: Website
A107: Keystone Pest Solution | B107: 2.5 gal | C107: 1529.95 | D107: =+C107/320 -> 4.78109375 | E107: https://www.keystonepestsolutions.com/priaxor-xemium-fungicide-2-5-gallons-669
A108: Ag Care | B108: 2.5 gal | C108: 1220 | D108: =+C108/320 -> 3.8125 | E108: https://www.agcareproducts.com/products/10269-priaxor-25-gal?_pos=1&_sid=a8aff7e98&_ss=r
A109: Jefferson County Co-op | B109: 2.5 | C109: 1725 | D109: =C109/(B109*128) -> 5.390625
A112: Aprovia top
A113: Suppliers | B113: Unit (fl oz, gal) | C113: Price | D113: Price perfl oz | E113: Website
A114: Keystone Pest Solution | B114: 1 gal | C114: 699.95 | D114: =+C114/128 -> 5.468359375 | E114: https://www.keystonepestsolutions.com/aprovia-fungicide-1-gallon-1110
A115: Grainger County Co-op | B115: 1 | C115: 318 | D115: =318/128 -> 2.484375
A118: Orondis Gold 200
A119: Suppliers | B119: Unit (fl oz, gal) | C119: Price | D119: Price per fl oz, gal | E119: Website
A120: Grainger County Co-op | B120: 1 | C120: 300 | D120: =300/128 -> 2.34375
A124: Ridomil Gold SL
A125: Suppliers | B125: Unit (lb, pt) | C125: Price | D125: Price per lb, pt | E125: Website
A126: AgCare | B126: pt | C126: 118 | D126: =+C126 -> 118 | E126: https://www.agcareproducts.com/products/ridomil-gold-sl-pint?_pos=3&_sid=6d9a26c9d&_ss=r
A127: Keystone pest solution | B127: pt | C127: 109.95 | D127: =+C127 -> 109.95 | E127: https://www.keystonepestsolutions.com/ridomil-gold-sl-fungicide-1-pint-350
A128: Militello Farm Supply Inc | B128: pt | C128: 109.95 | D128: 109.95
A129: Martin's produce supplies | B129: pt | C129: 90.91 | D129: 90.91 | E129: https://martinsproducesupplies.com/product/ridomol-gold-fungicide/
A130: Jefferson County Co-op | B130: 1 pt | C130: 121 | D130: 121
A131: Grainger County Co-op | B131: 1pt | C131: 125 | D131: 125
A132: Grainger County Co-op | B132: 1gal | C132: 950 | D132: =950/8 -> 118.75
A134: Ranman
A135: Suppliers | B135: Unit (fl oz, gal) | C135: Price | D135: Price per fl oz | E135: Website
A136: Keystone Pest Solution | B136: gal | C136: 949.95 | D136: =+C136/128 -> 7.421484375 | E136: https://www.keystonepestsolutions.com/ranman-fungicide-1-gallon-1105
A137: Ag Care | B137: qt | C137: 268 | D137: =+C137/32 -> 8.375 | E137: https://www.agcareproducts.com/products/ranman-1-quart?_pos=1&_sid=3fcbab408&_ss=r
A138: Militello Farm Supply Inc | B138: qt | C138: 294.95 | D138: =+C138/32 -> 9.2171875
A139: Martin's Produc solution | B139: qt | C139: 229.55 | D139: =+C139/32 -> 7.1734375 | E139: https://martinsproducesupplies.com/product/ranman-fungicide/
A140: Jefferson County Co-op (Ranman 400 SC Orgo) | B140: 1 | C140: 1065 | D140: =C140/(B140*128) -> 8.3203125
A141: Grainger County Co-op | B141: 0.25 | C141: 275 | D141: =C141/(B141*128) -> 8.59375
A142: Grainger County Co-op | B142: 1 | C142: 975 | D142: =C142/(B142*128) -> 7.6171875
A144: Revus
A145: Suppliers | B145: Unit (fl oz, gal) | C145: Price | D145: Price per fl oz | E145: Website
A146: Keystone Pest Solution | B146: gal | C146: 484.95 | D146: =+C146/128 -> 3.788671875 | E146: https://www.keystonepestsolutions.com/revus-fungicide-1-gallon-534
A147: Militello Farm Supply | B147: gal | C147: 444.95 | D147: =+C147/128 -> 3.476171875 | E147: https://www.militellofarmsupply.com/shop/revus-fungicide/
A148: Jefferson County Co-op | B148: 2.5 | C148: 875 | D148: =C148/(B148*128) -> 2.734375
A149: Grainger County Co-op | B149: 2.5 | C149: 1025 | D149: =C149/(B149*128) -> 3.203125
A151: Presidio
A152: Suppliers | B152: Unit (fl oz, gal) | C152: Price | D152: Price per fl oz | E152: Website
A153: Ag Care | B153: qt | C153: 318 | D153: =+C153/32 -> 9.9375 | E153: https://www.agcareproducts.com/products/presidio-1-qt?_pos=1&_sid=5c3d13b05&_ss=r
A154: Keystone Pest Solution | B154: qt | C154: 374.95 | D154: =+C154/32 -> 11.7171875 | E154: https://www.keystonepestsolutions.com/presidio-fungicide-1-quart-239
A155: Jefferson County Co-op | B155: 32 fl oz | C155: 306.3 | D155: =C155/32 -> 9.571875
A156: Grainger County Co-op | B156: 33 fl oz | C156: 335 | D156: =C156/32 -> 10.46875
A157: Martin's produce supplies | B157: qt | C157: 335.23 | D157: 10.4759375 | E157: https://martinsproducesupplies.com/product/presidio-fungicide/
A159: Zampro
A160: Suppliers | B160: Unit (fl oz, gal) | C160: Price | D160: Price per fl oz | E160: Website
A161: Grainger County Co-op | B161: 140 | C161: 360 | D161: =360/140 -> 2.571428571
A162: Keystone Pest solutions | B162: 140fl oz | C162: 399.95 | D162: =+C162/140 -> 2.856785714 | E162: https://www.keystonepestsolutions.com/zampro-fungicide-140-ounces-899
A163: Militello Farm Supply | B163: 140 fl oz | C163: 419.95 | D163: =+C163/140 -> 2.999642857 | E163: https://www.militellofarmsupply.com/shop/zampro-fungicide/
A164: Martin's produce supplies | B164: 176 fl oz | C164: 365.91 | D164: =+C164/176 -> 2.079034091 | E164: https://martinsproducesupplies.com/product/zampro-fungicide/
A166: Orondis Ultra
A167: Suppliers | B167: Unit (fl oz, gal) | C167: Price | D167: Price per fl oz, gal | E167: Website
A172: Mustang Maxx
A173: Suppliers | B173: Unit (gal) | C173: Price | D173: Price per fl oz | E173: Website
A174: ag care | B174: gal | C174: 159 | D174: =+C174/128 -> 1.2421875 | E174: https://www.agcareproducts.com/products/5379-rup-mustang-maxx-1-gal?_pos=1&_sid=ee171770d&_ss=r
A175: Keyston pest solutions | B175: gal | C175: 179.95 | D175: =+C175/128 -> 1.405859375 | E175: https://www.keystonepestsolutions.com/mustang-maxx-insecticide-1-gallon-661
A176: Knoxville | B176: gal | C176: 204.95 | D176: 1.601171875
A177: Grainger County Co-op | B177: 1 | C177: 220 | D177: =C177/128 -> 1.71875
A179: Coragen
A180: Suppliers | B180: Unit (fl oz, gal) | C180: Price | D180: Price per fl oz | E180: Website
A181: Jefferson County Co-op | B181: 0.25gal | C181: 335 | D181: =C181/(128*0.25) -> 10.46875
A182: Grainger County Co-op | B182: 1gal | C182: 1160 | D182: =C182/128 -> 9.0625
A183: Ag Care | B183: 32 oz | C183: 255 | D183: =+C183/32 -> 7.96875 | E183: https://www.agcareproducts.com/products/5352-coragen-quart?_pos=1&_sid=f15ca1455&_ss=r
A184: Keystone Pestsolutios | B184: qt (32 oz) | C184: 263.95 | D184: =+C184/32 -> 8.2484375 | E184: https://www.keystonepestsolutions.com/coragen-insecticide-1-quart-543
A185: Martin's produce supplies | B185: 1 qt | C185: 226.7 | D185: =+C185/32 -> 7.084375
A186: Knoxville | B186: gal | C186: 850 | D186: =+C186/128 -> 6.640625
A188: Movento
A189: Suppliers | B189: Unit (fl oz, gal) | C189: Price | D189: Price per fl oz, gal | E189: Website
A190: Keyston supplies | B190: qt | C190: 279.95 | D190: =+C190/32 -> 8.7484375 | E190: https://www.keystonepestsolutions.com/movento-insecticide-1-quart-904
A191: Militello farm supply inc | B191: qt | C191: 279.95 | D191: =+C191/32 -> 8.7484375
A192: Grainger County Co-op | B192: 0.25 | C192: 237 | D192: =+C192/32 -> 7.40625
A194: Orthene (Acephate replaces orthene ask Zach about application rate)
A195: Suppliers | B195: Unit (gal) | C195: Price | D195: Price per lb | E195: Website
A196: Martin's produce supplies | B196: lb | C196: 9.44 | D196: =+C196 -> 9.44 | E196: https://martinsproducesupplies.com/product/acephate-97up-insecticide/
A197: Keystone pest solutions | B197: lb | C197: 15.95 | D197: =+C197 -> 15.95 | E197: https://www.keystonepestsolutions.com/acephate-97up-insecticide-1-pound-replaces-orthene-97-insecticide-305
A198: Ag Care | B198: lb | C198: 14 | D198: 14 | E198: https://www.agcareproducts.com/products/acephate-97up-1-bag?_pos=1&_sid=73b282b11&_ss=r
A199: Jefferson County Co-op | B199: 10 | C199: 69.5 | D199: =+C199/B199 -> 6.95
A200: Grainger County Co-op | B200: 12 OZ | C200: 12 | D200: =(C200*16)/(12) -> 16
A201: Knoxville
A202: Maryville | B202: 12 oz | C202: 13.99 | D202: =(13.99*16)/12 -> 18.65333333
A204: Poast
A205: Suppliers | B205: Unit (ga) | C205: Price | D205: Price per pt | E205: Website
A206: Grainger County Co-op | B206: 2.5 | C206: 315 | D206: =C206/20 -> 15.75
A207: Knoxvville | B207: 2.5 | C207: 257.5 | D207: =+C207/20 -> 12.875
A208: Maryville | B208: 2.5 | C208: 311.4 | D208: =+C208/20 -> 15.57
A209: Martin's Produce supplies | B209: 2.5 | C209: 248.61 | D209: =+C209/20 -> 12.4305 | E209: https://martinsproducesupplies.com/product/poast-herbicide-2-5-gal/
A210: Keyston pest soluion | B210: 2.5 | C210: 327.95 | D210: =+C210/20 -> 16.3975 | E210: https://www.keystonepestsolutions.com/poast-herbicide-2-5-gallons-183
A212: Sandea
A213: Suppliers | B213: Unit (10 oz) | C213: Price | D213: Price per oz | E213: Website
A214: Keystone Pest Solutions | B214: 10 oz | C214: 369.95 | D214: =+C214/10 -> 36.995 | E214: https://www.keystonepestsolutions.com/sandea-herbicide-post-emergence-10-ounces-285
A215: Martin's produce supplies | B215: 10 oz | C215: 312.5 | D215: =+C215/10 -> 31.25 | E215: https://martinsproducesupplies.com/product/sandea-herbicide-10-oz/
A218: Labor | B218: $/ hour | C218: Source
A219: Operator | B219: 16.27 | C219: https://www.bls.gov/oes/current/oes_tn.htm#45-0000
A220: Hand labor | B220: 13.89 | C220: https://www.dol.gov/agencies/eta/foreign-labor/wages/adverse-effect-wage-rates
A222: Cardboard Boxes
A223: Suppliers | B223: Unit (# boxes) | C223: Price | D223: Price per box | E223: Website
A224: Gracier Valley | B224: 560 | C224: 1772 | D224: =+C224/B224 -> 3.164285714 | E224: https://www.glacierv.com/SPD/item-no-883---1-1-9-bushel-vegetable-carton--cascaded-wax--560-pack--2310000-1207778056.jsp
A225: Rockford package supply | B225: 540 | C225: 1275.48 | D225: =+C225/B225 -> 2.362 | E225: https://rockfordpack.com/1-1-9-bushel-vegetable-carton-pepper-print.html
A226: Globe Bag Go | B226: 540 | C226: 1602.72 | D226: =+C226/B226 -> 2.968 | E226: https://globebag.com/product/1-19-bushel-waxed-vegetable-box/
A228: Gas Prices
B229: Price per gallon | C229: Source
A230: Diesel | B230: 4.99 | C230: https://www.eia.gov/dnav/pet/PET_PRI_GND_DCUS_R20_W.htm
A231: Gas | B231: 3.6 | C231: https://www.eia.gov/dnav/pet/PET_PRI_GND_DCUS_R20_W.htm
A233: Landfill tipping fees | B233: $/ton
A234: Kingsport and averager based on 2019 fruit and vegetable farmers | B234: 35 | C234: https://www.kingsporttn.gov/city-services/public-works/sanitation/landfill/
A235: Sumner couny | B235: 60 | C235: https://www.resourceauthorityinsumner.org/
A236: Willimason county | B236: 75 | C236: https://www.williamsoncounty-tn.gov/155/Landfill
A238: Land Rent | B238: $/acre | C238: Source
A239: Average for the state of Tennessee 2021 | B239: 187 | C239: https://quickstats.nass.usda.gov/results/58B27A06-F574-315B-A854-9BF568F17652#7878272B-A9F3-3BC2-960D-5F03B7DF4826

Sheet Equipment (hidden)
B4: Description | D4: Size | E4: Power Unit | F4: Purchase Price | G4: Annual Use | H4: Useful Life | I4: Perf Rate | J4: Labor | K4: Fuel | L4: R & M (IMP) | M4: R & M (PU) | N4: Total Direct | O4: Fixed (IMP) | P4: Fixed (PU) | Q4: Total Cost | S4: Unit Type | T4: Size | U4: # | V4: Purchase Price | W4: Annual Use | X4: Useful Life | Y4: Fuel Use (gal)/hr | Z4: Labor | AA4: Fuel | AB4: R & M | AC4: Total Direct | AD4: Fixed
B5: BS, Lay/Tape Bpepper | D5: 6' | E5: 2 WD 75hp | F5: =+(4625+4500)/2 -> 4562.5 | G5: 54 | H5: 16 | I5: 1.078 | J5: 17.54 | K5: 21.8 | L5: 2.73 | M5: 1.45 | N5: =SUM(J5,K5,L5,M5) -> 43.52 | O5: 7.11 | P5: 8.13 | Q5: =+SUM(N5:P5) -> 58.76 | S5: Tractor (60-89hp) RB | T5: 2 WD 75hp | U5: 8 | V5: 43100 | W5: 600 | X5: 8 | Y5: 3.86 | Z5: =+'Input prices'!B219 -> 16.27 | AA5: =+Y5*'Input prices'!B230 -> 19.2614 | AB5: 1.35 | AC5: =SUM(Z5:AB5) -> 36.8814 | AD5: 7.54
B6: Fertilizer Cyclone Spin | D6: 750 lb | E6: 2 WD 75hp | F6: 1500 | G6: 50 | H6: 8 | I6: 0.084 | J6: =+I6*'Input prices'!B219 -> 1.36668 | K6: 1.7 | L6: 0.09 | M6: 0.11 | N6: =SUM(J6,K6,L6,M6) -> 3.26668 | O6: 0.32 | P6: 0.63 | Q6: =+SUM(N6:P6) -> 4.21668
B7: Disk Harrow | D7: 10ft | E7: 2 WD 75hp | F7: 10698 | G7: 180 | H7: 10 | I7: 0.198 | J7: 3.22 | K7: 4 | L7: 0.27 | M7: 0.56 | N7: =SUM(J7,K7,L7,M7) -> 8.05 | O7: 1.15 | P7: 1.49 | Q7: =+SUM(N7:P7) -> 10.69
B8: Mulch Lifter | D8: 1 row | E8: 2 WD 75hp | F8: 2198 | G8: 29 | H8: 30 | I8: 0.589 | J8: 9.58 | K8: 11.91 | L8: 0.15 | M8: 0.79 | N8: =SUM(J8,K8, L8,M8) -> 22.43 | O8: 2.26 | P8: 3.82261 | Q8: =+SUM(N8:P8) -> 28.51261
B9: Rotary Cutter | D9: 7ft | E9: 2 WD 75hp | F9: =+(5098+5199)/2 -> 5148.5 | G9: 185 | H9: 10 | I9: 0.169 | J9: 2.75 | K9: 3.42 | L9: 0.14 | M9: 0.16224 | N9: =SUM(J9,K9,L9,M9) -> 6.47224 | O9: 0.42 | P9: 1.09681 | Q9: =+SUM(N9:P9) -> 7.98905
B10: Spray (Broadcast) | D10: 27' | E10: 2 WD 75hp | F10: 5350 | G10: 200 | H10: 8 | I10: 0.062 | J10: 1.41 | K10: 1.25 | L10: 0.15 | M10: 0.08 | N10: =SUM(J10,K10,L10,M10) -> 2.89 | O10: 0.17 | P10: 0.47 | Q10: =+SUM(N10:P10) -> 3.53
B11: Sprayer - Utility | D11: 4ft | E11: 4*4 | F11: 597 | G11: 200 | H11: 5 | I11: 0.25 | J11: 4.355 | K11: 0.42915 | L11: 0.02 | M11: 0.24 | N11: =SUM(J11,K11,L11, M11) -> 5.04415 | O11: 0.17 | P11: 1.6225 | Q11: 6.83665
B12: Trailer Utility | D12: 10ft | E12: 2 WD 75hp | F12: 1248 | G12: 200 | H12: 15 | I12: 0.6 | J12: 9.76 | K12: 12.14 | L12: 0.1 | M12: 0.81 | N12: =SUM(J12,K12,L12,M12) -> 22.81 | O12: 0.29 | P12: 4.53 | Q12: 27.63
F15: PB | G15: No PB
E16: Diesel fuel (gal) | F16: =+((K$8+K$9+K$6+K$5)+(K$7*3)+(K$12*3)+(K$10*21))/'Input prices'!B$230 -> 22.74549098 | G16: =+((K$8+K$9+K$6+K$5)+(K$7*3)+(K$12*3)+(K$10*16))/'Input prices'!B$230 -> 21.49298597
E17: R&M PU | F17: =+(M6+M8+M9+M5)+(M7*3)+(M10*21)+(M12*3) -> 8.30224 | G17: =+(M5+M6+M8+M9)+(M7*3)+(M12*3)+(M10*16) -> 7.90224
E18: R&M Implements | F18: =+(L6+L5+L8+L9)+(L7*3)+(L10*21)+(L12*3) -> 7.37 | G18: =+(L5+L6+L8+L9)+(L7*3)+(L12*3)+(L10*16) -> 6.62
E19: Fixed cost PU | F19: =+(P5+P6+P8+P9)+(P7*3)+(P12*3)+(P10*21) -> 41.60942 | G19: =+(P5+P6+P8+P9)+(P7*3)+(P12*3)+(P10*16) -> 39.25942
E20: Fixed cost implement | F20: =+(O5+O6+O8+O9)+(O7*3)+(O12*3)+(O10*21) -> 18 | G20: =+(O5+O6+O8+O9)+(O7*3)+(O12*3)+(O10*16) -> 17.15

Sheet Yield and price combination (hidden)
B2: Breakeven Price ($/box)
A3: Bell Pepper | C3: 11.61 | D3: 12.05849 | E3: 12.581575 | F3: 13.191843 | G3: 13.91307 | H3: 14.77854 | I3: 15.83634 | J3: 17.15858 | K3: 18.85862 | L3: 21.12532 | M3: 24.29872
A4: Percent | B4: Yield
A5: 50 | B5: =+B10*0.5 -> 674.4 | C5: -8560.117976 | D5: -8254.808329 | E5: -7902.039805 | F5: -7490.475065 | G5: -7004.079577 | H5: -6420.406609 | I5: -5707.026289 | J5: -4815.307633 | K5: -3668.800657 | L5: -2140.138177 | M5: 0
A6: 60 | B6: =+B10*0.6 -> 809.28 | C6: -7703.978828 | D6: -7337.607252 | E6: -6914.285023 | F6: -6420.407336 | G6: -5836.732749 | H6: -5136.325188 | I6: -4280.268804 | J6: -3210.206417 | K6: -1834.398045 | L6: 0 | M6: 2568.166083
A7: 70 | B7: =+B10*0.7 -> 944.16 | C7: -6847.839681 | D7: -6420.406175 | E7: -5926.530241 | F7: -5350.339607 | G7: -4669.385922 | H7: -3852.243767 | I7: -2853.511319 | J7: -1605.105201 | K7: 0 | L7: 2140.132038 | M7: 5136.329382
A8: 80 | B8: =+B10*0.8 -> 1079.04 | C8: -5991.700534 | D8: -5503.205098 | E8: -4938.77546 | F8: -4280.271877 | G8: -3502.039095 | H8: -2568.162346 | I8: -1426.753834 | J8: 0 | K8: 1834.407177 | L8: 4280.267145 | M8: 7704.492681
A9: 90 | B9: =+B10*0.9 -> 1213.92 | C9: -5135.561386 | D9: -4586.004022 | E9: -3951.020678 | F9: -3210.204148 | G9: -2334.692268 | H9: -1284.080926 | I9: 0 | J9: 1605.097231 | K9: 3668.809788 | L9: 6420.402252 | M9: 10272.65598
A10: 100 | B10: 1348.8 | C10: -4279.422239 | D10: -3668.802945 | E10: -2963.265897 | F10: -2140.136418 | G10: -1167.345441 | H10: 0 | I10: 1426.761135 | J10: 3210.198447 | K10: 5503.212399 | L10: 8560.537359 | M10: 12840.81928
A11: 110 | B11: =+B10*1.1 -> 1483.68 | C11: -3423.283092 | D11: -2751.601868 | E11: -1975.511115 | F11: -1070.068689 | G11: 0 | H11: 1284.081916 | I11: 2853.51862 | J11: 4815.299663 | K11: 7337.61501 | L11: 10700.67247 | M11: 15408.98258
A12: 120 | B12: =+B10*1.2 -> 1618.56 | C12: -2567.143944 | D12: -1834.400791 | E12: -987.7563336 | F12: 0 | G12: 1167.348214 | H12: 2568.163337 | I12: 4280.276105 | J12: 6420.400879 | K12: 9172.017622 | L12: 12840.80757 | M12: 17977.14588
A13: 130 | B13: =+B10*1.3 -> 1753.44 | C13: -1711.004797 | D13: -917.1997144 | E13: 0 | F13: 1070.06677 | G13: 2334.695041 | H13: 3852.244758 | I13: 5707.03359 | J13: 8025.502095 | K13: 11006.42023 | L13: 14980.94268 | M13: 20545.30918
A14: 140 | B14: =+B10*1.4 -> 1888.32 | C14: -855 | D14: 0 | E14: 987.7532295 | F14: 2140.134499 | G14: 3502.041868 | H14: 5136.326178 | I14: 7133.791074 | J14: 9630.603311 | K14: 12840.82284 | L14: 17121.07779 | M14: 23113.47248
A15: 150 | B15: =+B10*1.5 -> 2023.2 | C15: 0 | D15: 917.2024391 | E15: 1975.508011 | F15: 3210.202229 | G15: 4669.388695 | H15: 6420.407599 | I15: 8560.548559 | J15: 11235.70453 | K15: 14675.22546 | L15: 19261.2129 | M15: 25681.63578

Sheet Price graph (hidden)
A1: Date | B1: Shipping Point Averages - Weekly
A2: 2022-01-01 | B2: 8.85
A3: 2022-01-08 | B3: 13.35
A4: 2022-01-15 | B4: 18.35
A5: 2022-01-22 | B5: 14.68333333
A6: 2022-01-29 | B6: 14.68333333
A7: 2022-02-05 | B7: 14.68333333
A8: 2022-02-12 | B8: 11.68333333
A9: 2022-02-19 | B9: 9.85
A10: 2022-02-26 | B10: 12.01666667
A11: 2022-03-05 | B11: 16.68333333
A12: 2022-03-12 | B12: 23.68333333
A13: 2022-03-19 | B13: 23.68333333
A14: 2022-03-26 | B14: 23.68333333
A15: 2022-04-02 | B15: 23.68333333
A16: 2022-04-09 | B16: 29.68333333
A17: 2022-04-16 | B17: 33.01666667
A18: 2022-04-23 | B18: 30.35
A19: 2022-04-30 | B19: 25.68333333
A20: 2022-05-07 | B20: 21.68333333
A21: 2022-05-14 | B21: 22.01666667
A22: 2022-05-21 | B22: 22.64166667
A23: 2022-05-28 | B23: 20.80833333
A24: 2022-06-04 | B24: 16.7
A25: 2022-06-11 | B25: 12.6
A26: 2022-06-18 | B26: 11.26666667
A27: 2022-06-25 | B27: 12.93333333
A28: 2022-07-02 | B28: 17.16
A29: 2022-07-09 | B29: 21.24
A30: 2022-07-16 | B30: 25.33333333 | D30: Average | E30: =+AVERAGE(B2:B33) -> 19.21666667
A31: 2022-07-23 | B31: 24.5
A32: 2022-07-30 | B32: 20.75
A33: 2022-08-06 | B33: 17

Sheet APPENDIX 1 (hidden)
A1: Week (post-transplanting spray #) | B1: Product (active ingredient) | C1: Target disease | D1: Rate per acre | E1: Notes
A2: Pre-plant | B2: Fumigants - various - see note | C2: Nematodes, soilborne pathogens, weeds | D2: Various - see fumigant tab | E2: Depending on nematode and weed pressure, growers may or may not choose to fumigate soil prior to planting. If they do, the best overall products for nematode, soilborne pathogen, and weed suppression are products containing 1,3-dichloropropene + chloropicrin (InLine, Pic-Clor 60, Telone C17, Telone C35) or dimethyl disulphide (Paladin). See fumigant tab fo rmore information on rates.
A3: Pre-plant | B3: Agri-Mycin 17, Firewall | C3: Bacterial spot (Xanthomonas euvesicatoria) | D3: 1 lb/100 gallon | E3: Diffucult to estimate this on a per acre basis. Also, growers may make anywhere from 0 to 3 applications in the greenhouse before transplanting, depending on bacterial spot severity.
A4: 0 (at planting) | B4: Blocker (PCNB) | C4: Southern blight (Sclerotium rolfsii) | D4: 4.5-7.5 pt/100 gal; use 0.5 pt solution per plant | E4: Should be able to calculate per acre rate based on # of plants per acre.
A5: 1 | B5: fixed copper (various) | C5: Bacterial spot (Xanthomonas euvesicatoria) | D5: Kocide as an example (1.25 lbs per acre) | E5: There are several copper products available with varying rates and costs. (Champ, Champion, Cuprofix Ultra, Kocide, MasterCop, Nordox, Nu-Cop)
A6: 2 | B6: fixed copper (various) | C6: Bacterial spot (Xanthomonas euvesicatoria) | D6: Kocide as an example (1.25 lbs per acre) | E6: There are several copper products available with varying rates and costs. (Champ, Champion, Cuprofix Ultra, Kocide, MasterCop, Nordox, Nu-Cop)
A7: 3 | B7: fixed copper (various) | C7: Bacterial spot (Xanthomonas euvesicatoria) | D7: Kocide as an example (1.25 lbs per acre) | E7: There are several copper products available with varying rates and costs. (Champ, Champion, Cuprofix Ultra, Kocide, MasterCop, Nordox, Nu-Cop)
B8: mancozeb (various) | C8: Anthracnose fruit rot (Colletotrichum spp.) | D8: Manzate as an example (2 lbs/acre)
B9: Aprovia Top (difenoconazole + benzovindiflupyr) | C9: Anthracnose fruit rot (Colletotrichum spp.) | D9: 12 oz/acre
A10: 4 | B10: fixed copper (various) | C10: Bacterial spot (Xanthomonas euvesicatoria) | D10: Kocide as an example (1.25 lbs per acre) | E10: There are several copper products available with varying rates and costs. (Champ, Champion, Cuprofix Ultra, Kocide, MasterCop, Nordox, Nu-Cop)
B11: mancozeb (various) | C11: Anthracnose fruit rot (Colletotrichum spp.) | D11: Manzate as an example (2 lbs/acre)
A12: 5 | B12: fixed copper (various) | C12: Bacterial spot (Xanthomonas euvesicatoria) | D12: Kocide as an example (1.25 lbs per acre) | E12: There are several copper products available with varying rates and costs. (Champ, Champion, Cuprofix Ultra, Kocide, MasterCop, Nordox, Nu-Cop)
B13: mancozeb (various) | C13: Anthracnose fruit rot (Colletotrichum spp.) | D13: Manzate as an example (2 lbs/acre)
B14: Cabrio (pyraclostrobin) | C14: Anthracnose fruit rot (Colletotrichum spp.) | D14: 10 oz/acre
A15: 6 | B15: fixed copper (various) | C15: Bacterial spot (Xanthomonas euvesicatoria) | D15: Kocide as an example (1.25 lbs per acre) | E15: There are several copper products available with varying rates and costs. (Champ, Champion, Cuprofix Ultra, Kocide, MasterCop, Nordox, Nu-Cop)
B16: mancozeb (various) | C16: Anthracnose fruit rot (Colletotrichum spp.) | D16: Manzate as an example (2 lbs/acre)
A17: 7 | B17: fixed copper (various) | C17: Bacterial spot (Xanthomonas euvesicatoria) | D17: Kocide as an example (1.25 lbs per acre) | E17: There are several copper products available with varying rates and costs. (Champ, Champion, Cuprofix Ultra, Kocide, MasterCop, Nordox, Nu-Cop)
B18: mancozeb (various) | C18: Anthracnose fruit rot (Colletotrichum spp.) | D18: Manzate as an example (2 lbs/acre)
B19: Priaxor (fluxapyroxad + pyraclostrobin) | C19: Anthracnose fruit rot (Colletotrichum spp.) | D19: 6 oz/acre
A20: 8 | B20: fixed copper (various) | C20: Bacterial spot (Xanthomonas euvesicatoria) | D20: Kocide as an example (1.25 lbs per acre) | E20: There are several copper products available with varying rates and costs. (Champ, Champion, Cuprofix Ultra, Kocide, MasterCop, Nordox, Nu-Cop)
B21: mancozeb (various) | C21: Anthracnose fruit rot (Colletotrichum spp.) | D21: Manzate as an example (2 lbs/acre)
A22: 9 | B22: fixed copper (various) | C22: Bacterial spot (Xanthomonas euvesicatoria) | D22: Kocide as an example (1.25 lbs per acre) | E22: There are several copper products available with varying rates and costs. (Champ, Champion, Cuprofix Ultra, Kocide, MasterCop, Nordox, Nu-Cop)
B23: mancozeb (various) | C23: Anthracnose fruit rot (Colletotrichum spp.) | D23: Manzate as an example (2 lbs/acre)
B24: azoxystrobin (various) | C24: Anthracnose fruit rot (Colletotrichum spp.) | D24: Quadris as an example (10 oz per acre)
A25: 10 | B25: fixed copper (various) | C25: Bacterial spot (Xanthomonas euvesicatoria) | D25: Kocide as an example (1.25 lbs per acre) | E25: There are several copper products available with varying rates and costs. (Champ, Champion, Cuprofix Ultra, Kocide, MasterCop, Nordox, Nu-Cop)
B26: Chlorothalonil | C26: Anthracnose fruit rot (Colletotrichum spp.) | D26: Bravo as an example (1.5 pt per acre)
B27: Aprovia Top (difenoconazole + benzovindiflupyr) | C27: Anthracnose fruit rot (Colletotrichum spp.) | D27: 12 oz/acre

Sheet fumigants_ZRH (hidden)
A1: Product | B1: Rate (gal per treated acre)
A2: InLine | B2: 29-56.7 | C2: =+(29+56.7)/2 -> 42.85
A3: Pic-Clor 60 | B3: 48.6
A4: Telone C17 | B4: 32.4-42 | C4: =+(32.4+42)/2 -> 37.2
A5: Telone C35 | B5: 39-50 | C5: =+(39+50)/2 -> 44.5

Sheet APPENDIX 2 (hidden)
A1: Week (post-transplanting spray #) | B1: Product (active ingredient) | C1: Target disease | D1: Rate per acre | E1: Notes
A2: Pre-plant | B2: Fumigants - various - see note | C2: Nematodes, soilborne pathogens, weeds | D2: Various - see fumigant tab | E2: Depending on nematode and weed pressure, growers may or may not choose to fumigate soil prior to planting. If they do, the best overall products for nematode, soilborne pathogen, and weed suppression are products containing 1,3-dichloropropene + chloropicrin (InLine, Pic-Clor 60, Telone C17, Telone C35) or dimethyl disulphide (Paladin). See fumigant tab fo rmore information on rates.
A3: Pre-plant | B3: Agri-Mycin 17, Firewall | C3: Bacterial spot (Xanthomonas euvesicatoria) | D3: 1 lb/100 gallon | E3: Diffucult to estimate this on a per acre basis. Also, growers may make anywhere from 0 to 3 applications in the greenhouse before transplanting, depending on bacterial spot severity.
A4: 0 (at planting) | B4: Blocker (PCNB) | C4: Southern blight (Sclerotium rolfsii) | D4: 4.5-7.5 pt/100 gal; use 0.5 pt solution per plant | E4: Should be able to calculate per acre rate based on # of plants per acre.
B5: Orondis Gold 200 (oxathiapiprolin) | C5: Phytophthora blight (Phytophthora capsici) | D5: 9.6 fl oz per acre
A6: 1 | B6: fixed copper (various) | C6: Bacterial spot (Xanthomonas euvesicatoria) | D6: Kocide as an example (1.25 lbs per acre) | E6: There are several copper products available with varying rates and costs. (Champ, Champion, Cuprofix Ultra, Kocide, MasterCop, Nordox, Nu-Cop)
B7: Ridomil Gold SL (mefenoxam) | C7: Phytophthora blight (Phytophthora capsici) | D7: 1 pt per acre
A8: 2 | B8: fixed copper (various) | C8: Bacterial spot (Xanthomonas euvesicatoria) | D8: Kocide as an example (1.25 lbs per acre) | E8: There are several copper products available with varying rates and costs. (Champ, Champion, Cuprofix Ultra, Kocide, MasterCop, Nordox, Nu-Cop)
B9: Ranman (cyazofamid) | C9: Phytophthora blight (Phytophthora capsici) | D9: 2.75 fl oz per acre
A10: 3 | B10: fixed copper (various) | C10: Bacterial spot (Xanthomonas euvesicatoria) | D10: Kocide as an example (1.25 lbs per acre) | E10: There are several copper products available with varying rates and costs. (Champ, Champion, Cuprofix Ultra, Kocide, MasterCop, Nordox, Nu-Cop)
B11: mancozeb (various) | C11: Anthracnose fruit rot (Colletotrichum spp.) | D11: Manzate as an example (2 lbs/acre)
B12: Aprovia Top (difenoconazole + benzovindiflupyr) | C12: Anthracnose fruit rot (Colletotrichum spp.) | D12: 12 oz/acre
B13: Revus (mandipropamid) | C13: Phytophthora blight (Phytophthora capsici) | D13: 8 fl oz per acre
A14: 4 | B14: fixed copper (various) | C14: Bacterial spot (Xanthomonas euvesicatoria) | D14: Kocide as an example (1.25 lbs per acre) | E14: There are several copper products available with varying rates and costs. (Champ, Champion, Cuprofix Ultra, Kocide, MasterCop, Nordox, Nu-Cop)
B15: mancozeb (various) | C15: Anthracnose fruit rot (Colletotrichum spp.) | D15: Manzate as an example (2 lbs/acre)
B16: Presidio (fluopicolide) | C16: Phytophthora blight (Phytophthora capsici) | D16: 4 fl oz per acre
A17: 5 | B17: fixed copper (various) | C17: Bacterial spot (Xanthomonas euvesicatoria) | D17: Kocide as an example (1.25 lbs per acre) | E17: There are several copper products available with varying rates and costs. (Champ, Champion, Cuprofix Ultra, Kocide, MasterCop, Nordox, Nu-Cop)
B18: mancozeb (various) | C18: Anthracnose fruit rot (Colletotrichum spp.) | D18: Manzate as an example (2 lbs/acre)
B19: Cabrio (pyraclostrobin) | C19: Anthracnose fruit rot (Colletotrichum spp.) | D19: 10 oz/acre
B20: Zampro (ametoctradin + dimethomorph) | C20: Phytophthora blight (Phytophthora capsici) | D20: 14 fl oz per acre
A21: 6 | B21: fixed copper (various) | C21: Bacterial spot (Xanthomonas euvesicatoria) | D21: Kocide as an example (1.25 lbs per acre) | E21: There are several copper products available with varying rates and costs. (Champ, Champion, Cuprofix Ultra, Kocide, MasterCop, Nordox, Nu-Cop)
B22: mancozeb (various) | C22: Anthracnose fruit rot (Colletotrichum spp.) | D22: Manzate as an example (2 lbs/acre)
B23: Orondis Ultra (oxathiapiprolin + mandipropamid) | C23: Phytophthora blight (Phytophthora capsici) | D23: 8 fl oz per acre
A24: 7 | B24: fixed copper (various) | C24: Bacterial spot (Xanthomonas euvesicatoria) | D24: Kocide as an example (1.25 lbs per acre) | E24: There are several copper products available with varying rates and costs. (Champ, Champion, Cuprofix Ultra, Kocide, MasterCop, Nordox, Nu-Cop)
B25: mancozeb (various) | C25: Anthracnose fruit rot (Colletotrichum spp.) | D25: Manzate as an example (2 lbs/acre)
B26: Priaxor (fluxapyroxad + pyraclostrobin) | C26: Anthracnose fruit rot (Colletotrichum spp.) | D26: 6 oz/acre
B27: Ranman (cyazofamid) | C27: Phytophthora blight (Phytophthora capsici) | D27: 2.75 fl oz per acre
A28: 8 | B28: fixed copper (various) | C28: Bacterial spot (Xanthomonas euvesicatoria) | D28: Kocide as an example (1.25 lbs per acre) | E28: There are several copper products available with varying rates and costs. (Champ, Champion, Cuprofix Ultra, Kocide, MasterCop, Nordox, Nu-Cop)
B29: mancozeb (various) | C29: Anthracnose fruit rot (Colletotrichum spp.) | D29: Manzate as an example (2 lbs/acre)
B30: Revus (mandipropamid) | C30: Phytophthora blight (Phytophthora capsici) | D30: 8 fl oz per acre
A31: 9 | B31: fixed copper (various) | C31: Bacterial spot (Xanthomonas euvesicatoria) | D31: Kocide as an example (1.25 lbs per acre) | E31: There are several copper products available with varying rates and costs. (Champ, Champion, Cuprofix Ultra, Kocide, MasterCop, Nordox, Nu-Cop)
B32: mancozeb (various) | C32: Anthracnose fruit rot (Colletotrichum spp.) | D32: Manzate as an example (2 lbs/acre)
B33: azoxystrobin (various) | C33: Anthracnose fruit rot (Colletotrichum spp.) | D33: Quadris as an example (10 oz per acre)
B34: Presidio (fluopicolide) | C34: Phytophthora blight (Phytophthora capsici) | D34: 4 fl oz per acre
A35: 10 | B35: fixed copper (various) | C35: Bacterial spot (Xanthomonas euvesicatoria) | D35: Kocide as an example (1.25 lbs per acre) | E35: There are several copper products available with varying rates and costs. (Champ, Champion, Cuprofix Ultra, Kocide, MasterCop, Nordox, Nu-Cop)
B36: Chlorothalonil | C36: Anthracnose fruit rot (Colletotrichum spp.) | D36: Bravo as an example (1.5 pt per acre)
B37: Aprovia Top (difenoconazole + benzovindiflupyr) | C37: Anthracnose fruit rot (Colletotrichum spp.) | D37: 12 oz/acre
B38: Orondis Ultra (oxathiapiprolin + mandipropamid) | C38: Phytophthora blight (Phytophthora capsici) | D38: 8 fl oz per acre

Sheet Equipment costs (hidden)
B1: Power unti specifications | C1: Times over | D1: Power unit | F1: Equipment cost | H1: ALLOC LABOR | K1: R&M | L1: Diesel fuel | M1: Diesel prices | N1: Source | O1: PR | P1: Fuel use | Q1: gal
D2: direct | E2: fixed | F2: direct | G2: fixed | H2: hours | I2: operator cost | J2: cost | M2: =+((2.826+2.89+3.003+3.017)/4)-0.48 -> 2.454 | N2: 2019 prices https://www.eia.gov/dnav/pet/hist/LeafHandler.ashx?n=PET&s=EMD_EPD2D_PTE_R20_DPG&f=W | P2: 3.86
A3: Disk Harrow (10') | B3: 2WD 75 HP | C3: 2 | D3: =1.59*2 -> 3.18 | E3: =1.23*2 -> 2.46 | F3: =0.56*2 -> 1.12 | G3: =1.18*2 -> 2.36 | H3: =0.19*2 -> 0.38 | I3: 13.26 | J3: =+H3*I3 -> 5.0388 | K3: =0.2+2 -> 2.2 | L3: =+$M$2*O3*$P$2 -> 1.87554312 | O3: 0.198 | Q3: =+O3*$P$2 -> 0.76428
A4: Fert-Cyclone spin | B4: 2WD 75 HP | C4: 1 | D4: 0.67 | E4: 0.52 | F4: 0.08 | G4: 0.3 | H4: 0.08 | I4: 13.26 | J4: =+I4*H4 -> 1.0608 | K4: 0.08 | L4: =+$M$2*O4*$P$2 -> 0.79568496 | O4: 0.084 | Q4: =+O4*$P$2 -> 0.32424
A5: Plastic layer/tape 5 ft space | B5: 2WD 75 HP | C5: 1 | D5: 10.33 | E5: 8.06 | F5: 2.74 | G5: 7.78 | H5: 1.29 | I5: 13.26 | J5: =+H5*I5 -> 17.1054 | K5: 1.33 | L5: =+$M$2*O5*$P$2 -> 12.25733736 | O5: 1.294 | Q5: 4.99484
A6: Spray Broadcast (27') | B6: 2WD 75 HP | C6: 1 | D6: 0.54 | E6: 0.58 | F6: 0.16 | G6: 0.19 | H6: 0.09 | I6: 13.26 | J6: =+I6*H6 -> 1.1934 | K6: 0.09 | L6: =+$M$2*O6*$P$2 -> 0.58729128 | O6: 0.062 | Q6: 0.23932
A7: Basic | B7: application week | Q7: 0
